{"text_format":"1","workbook":"xlsx","n_sheets":23,"sheets":["Cover Page ","Contents","Facility Info","Improvements","Operational Data","Operational Summary","Perf. Form 1","Energy Form 1","Permit Compliance","Public Liasion","Water","CO2 N2O","Residue Quality ","Air (periodic)","Air (CEMS)","NOx","HCl","SO2","NH3","TOC","Particulates","CO 95% 10 min","CO 0.5 hourly"],"not_rendered":{"charts":6,"images":2,"macros":0,"external_links":0,"defined_names":0,"comments":0,"pivot_tables":0},"unopened":[],"bounds":{"document_bytes":16777216,"sheet_cells":100000,"rows_first":2000,"rows_last":500,"rows_between":2000,"halvings":0,"cell_chars":16384,"cell_head_chars":4096},"cells_cut":0,"cells_raw":0,"read":"whole","date_system":"1900"}

{"sheet":"Cover Page ","index":0,"n_rows":54,"n_cols":14,"rows_kept":54,"cut":false,"hidden":false,"merged":[[32,1,32,8],[47,2,47,3],[0,3,5,6],[7,1,23,8],[13,13,18,15],[28,1,28,8],[30,1,30,8],[49,2,49,3],[49,6,49,8],[53,2,53,3],[34,1,34,8],[36,1,36,8],[40,2,40,8],[42,2,42,4],[44,2,44,4],[46,2,46,3],[47,6,47,8],[46,6,46,8]]}
[]
[null,null,null,null,null,null,null,null,null,null,null,null,null,"Version 22.3  30/11/22"]
[]
[]
[]
[]
[]
[null,"Add photo"]
[]
[]
[]
[]
[null,null,null,null,null,null,null,null,null,null,null,null,null,"Notes:"]
[null,null,null,null,null,null,null,null,null,null,null,null,null,"This template may require adjustments by individual operators to meet specific reporting requirements as defined in the site Permit(s)"]
[]
[]
[]
[]
[]
[]
[]
[]
[]
[]
[]
[]
[]
[]
[null,"Annual Performance Report 2023"]
[]
[null,"Permit EPR/YP3033BE"]
[]
[null,"LondonEnergy Ltd"]
[]
[null,"EcoPark"]
[]
[null,"LondonEnergy Ltd "]
[]
[null,"Year:",2023]
[]
[null,"Address:","Advent way "]
[]
[null,"Tel: ","020 7000 9595"]
[]
[null,"Email: ","HSQE@londonenergyltd.com"]
[]
[null,"Prepared by:","Amani Jemal",null,null,"Position:","Environmental Advisor  "]
[null,null,"Ben Hillyear",null,null,null,"Operations Manager"]
[]
[null,"Approved by:","Elis Jenkins ",null,null,"Position:","Senior Environment Leader"]
[]
[null,"Version:",1]
[]
[null,"Issue Date:","2024-01-27"]

{"sheet":"Contents","index":1,"n_rows":45,"n_cols":11,"rows_kept":45,"cut":false,"hidden":false,"merged":[[44,0,47,9],[37,1,37,6],[38,1,38,6],[39,1,39,6],[40,1,40,6],[41,1,41,6],[42,1,42,6],[36,1,36,6],[22,1,22,6],[23,1,23,6],[24,1,24,6],[27,1,27,6],[28,1,28,6],[29,1,29,6],[30,1,30,6],[31,1,31,6],[32,1,32,6],[35,1,35,6],[21,1,21,6],[9,1,9,6],[10,1,10,6],[11,1,11,6],[13,1,13,6],[14,1,14,6],[15,1,15,6],[16,1,16,6],[17,1,17,6],[18,1,18,6],[19,1,19,6],[20,1,20,6],[12,1,12,6],[4,10,7,14],[8,1,8,6],[3,1,3,6],[4,1,4,6],[5,1,5,6],[6,1,6,6],[7,1,7,6]]}
["Annual Performance Report 2023",null,null,null,"Name of Facility as per Permit"]
[]
["Contents",null,null,null,null,null,null,null,null,null,"Notes:"]
["Section","Subject",null,null,null,null,null,"Page ",null,null,"Section references and Page nos. to be inserted"]
[null,"Facility Information",null,null,null,null,null,null,null,null,"Sections and Subjects may require adjustment by individual operators to meet specific reporting requirements as defined in the sites Permit(s)"]
[null,"Operational Data"]
[null,"Operational Summary"]
[null,"Performance Form 1"]
[null,"Energy Form 1"]
[null,"Permit Compliance"]
[null,"Improvements"]
[null,"Public Liasion"]
[null,"Carbon dioxide and nitrous oxide emissions"]
[null,"Residue Quality "]
[null,"Emissions to Water"]
[null,"Emissions to Air (periodically monitored)"]
[null,"Emissions to Air (continuously monitored)"]
[null,"Hydrogen Chloride emissions"]
[null,"Sulphur Dioxdie emsissions"]
[null,"Oxides of Notrigen emissions"]
[null,"Total Organic Carbon emissions"]
[null,"Particulate Matter emissions"]
[null,"Carbon Monoxide emissions"]
[null,"Ammonia emissions"]
[]
[]
["Version Control"]
["Section","Information",null,null,null,null,null,"Date"]
[]
[]
[]
[]
[]
[]
["Distribution"]
["Copy","Name, Role",null,null,null,null,null,"No."]
[]
[]
[]
[]
[]
[]
[]
[]
["This report is required under the Industrial Emissions Directive’s Article 55(2) requirements on reporting and public information on waste incineration plants and co-incineration plants, which require the operator to produce an annual report on the functioning and monitoring of the plant and make it available to the public. "]

{"sheet":"Facility Info","index":2,"n_rows":22,"n_cols":11,"rows_kept":22,"cut":false,"hidden":false,"merged":[[4,0,17,8],[21,0,53,8],[4,10,13,13],[21,10,30,13]]}
["Annual Performance Report 2023",null,null,null,"LondonEnergy Ltd"]
[]
["Plant Description and Design",null,null,null,null,null,null,null,null,null,"Notes:"]
[]
["The EcoPark Energy Centre consists of 5 boilers, 5 turbines and 4 flue gas treatment streams. The boilers are a rolling grate technology and the plant is equipped with Air Pollution Control (APC) measures that ensure that the plant conforms to the requirements set out in the Waste Incineration Directive 2000/76/EC (WID) in all respects. In practice, the pollutant abatement technologies applied will limit the emission concentrations to levels below the limit values.                                                                                                      \n\nThe heat from the process is utilised to generate potentially 40 MW of electricity, of which in excess of up to 80% is exported to the local electricity distribution network, thus saving valuable fossil fuel resources.  ",null,null,null,null,null,null,null,null,null,"Include summary of plant design, design capacity, no. of combustion lines, electrical and heat capacity and any other general information that descibes the facility, its location and purpose "]
[]
[]
[]
[]
[]
[]
[]
[]
[]
[]
[]
[]
[]
[]
["Summary of Operational Processes and Procedures"]
[]
["The burning process significantly reduces the volume of waste. Ferrous and non-ferrous metals are recycled as is Incinerator Bottom Ash (IBA). The IBA is recycled utilising established methodology for use as a secondary aggregate e.g. for asphalt. The effect of reducing the volume by recovery of this material means that landfill void space is conserved. Equally as important, the use of secondary aggregates reduces the demand upon the quarrying of primary aggregates.\n\nThe EcoPark Energy Centre plant operates on a continuous 24-hour basis throughout the year, apart from partial planned and unplanned shutdowns. Incidents that cause unplanned shutdowns are dealt with in accordance with the appropriate planned actions. To offer maximum flexibility to the Local Authorities waste collection services, and to minimise local impact, particularly during peak traffic times, the facility is permitted to accept waste on a 24-hour basis.",null,null,null,null,null,null,null,null,null,"Include summary of key processes and procedures such as (but not limited to); waste reception, control rooms, grate, bed and bolier, energy & heat  generation, cooling systems, residue management, emission controls, health and safety systems, maintenance"]

{"sheet":"Improvements","index":3,"n_rows":39,"n_cols":5,"rows_kept":39,"cut":false,"hidden":false,"merged":[[37,0,37,8],[38,0,47,8],[4,0,4,8],[5,0,13,8],[15,0,15,8],[16,0,24,8],[26,0,26,8],[27,0,35,8]]}
["Annual Performance Report 2023",null,null,null,"LondonEnergy Ltd"]
[]
["Summary of Plant Improvements"]
[]
["Summary of any efficiency improvements that have been completed within the year."]
["Replacement of Ash Extraction System\nReplacement of ALL bag filters across ALL FGT's\nRe-wind of TA4 Alternator\nCommencement of DeNox Upgrade"]
[]
[]
[]
[]
[]
[]
[]
[]
[]
["Summary of any permit improvement conditions that have been completed within the year and the resulting environmental benefits."]
["\n\n"]
[]
[]
[]
[]
[]
[]
[]
[]
[]
["Summary of any changes to the plant or operating techniques which required a variation to the permit and a summary of the resulting environmental impact."]
["Variation to align with WI BREF implementation on the 3rd December."]
[]
[]
[]
[]
[]
[]
[]
[]
[]
["Summary of any other improvements made to the plant or planned to be made and a summary of the resulting environmental benefits."]
["Boiler Outage - Complete Fan Motor Overhaul\nFGT Hopper replacement\nBoiler Bank replacement\nSuperheater replacement\nSuperheater inconel upgrade\nBoiler 5 Superheater bottom bend replacement\nCompletion of DeNox upgrade"]

{"sheet":"Operational Data","index":4,"n_rows":68,"n_cols":13,"rows_kept":68,"cut":false,"hidden":false,"merged":[[5,9,7,9],[52,0,56,0],[33,1,38,1],[3,1,3,2],[7,1,19,1],[23,1,26,1],[28,1,29,1],[9,9,20,9],[21,9,25,9]]}
["Annual Performance Report 2023",null,null,null,"LondonEnergy Ltd"]
[]
["Operational Data"]
["Plant Size","Max 750,000",null,"tonnes pa",null,"MWth",5400000,"MWe",null,"Notes:"]
["No. of combustion lines",5,null,"No. of Turbines:",null,5,null,null,null,"* - RDF to include SRF "]
[null,null,null,null,null,null,null,null,null,"** - Combusted tonnage = tonnes delivered in period + (tonnes in bunker at start of period – tonnes in bunker at end of period), or equivalent calculation depending on plant type"]
["Waste types received","Unit","Q1","Q2","Q3","Q4","Year Total","%"]
["Household / Local Authority","tonnes",53604,61387,60221,59858,{"$f":"SUM(C8:F8)","v":235070},{"$f":"G8/G18","v":0.4857647758657922}]
["Commercial & Industrial ",null,0,0,0,0,0,"-",null,"*** - CHP plants only"]
["Hazardous ",null,0,0,0,0,0,"-",null,"**** Availability Definition: 'the availability of a line is to be calculated by the number of hours the line reported Continuously Monitored emission levels to the Regulator through the calendar year divided by the total number of hours in that year. \n\nThe overall plant availability is calculated as the Mean of all lines in the plant. For clarity this includes periods of abnormal operation.'  \n\nRationale: The primary function of an Energy from Waste facility is the disposal of waste. It follows therefore that the availability of a plant is determined by the period of time a facility spends undertaking this activity."]
["Clinical",null,91,68,71,72,{"$f":"SUM(C11:F11)","v":302},{"$f":"G11/G18","v":6.2407351985140276E-4}]
["Waste wood (biomass) ",null,0,0,0,0,0,"-"]
["Refuse Derived Fuel * - H'hold/LA",null,0,0,0,0,0,"-"]
["Refuse Derived Fuel *  - C&I",null,0,0,0,0,0,"-"]
["Other [Third Party]",null,11971.781739999999,7314.8670000000011,2911.88598,10477.508980000001,{"$f":"SUM(C15:F15)","v":32676.043700000002},{"$f":"G15/G18","v":6.7524018565156468E-2}]
["Other [Hertfordshire CC - 2017 contract]",null,6623.16,1252.3,1393.38,3406.98,{"$f":"SUM(C16:F16)","v":12675.82},{"$f":"G16/G18","v":2.6194184120539098E-2}]
["Other [Secondary transfer, HS & Wembley]",null,61574.78,50286.2,45035.7,46296.800000000003,203193.47999999998,{"$f":"G17/G18","v":0.41989294792866089}]
["Total waste received",null,{"$f":"SUM(C8:C17)","v":133864.72174000001},{"$f":"SUM(D8:D17)","v":120308.367},109632.96597999999,120111.28898,{"$f":"SUM(G8:G17)","v":483917.34369999997},{"$f":"G18/G18","v":1}]
["Rejected Waste ",null,null,null,null,null,0,"-"]
["Unprocessed waste transferred out",null,null,null,null,null,0,"-"]
["Total waste combusted **",null,null,null,null,null,0]
[null,null,null,null,null,null,null,null,null,"Password for protected cells\nA password has been set to prevent accidental  editing of cells with formulae. \nIf you still need to make an edit for some reason then the password = 1234"]
["Energy Usage / Export","Unit","Q1","Q2","Q3","Q4","Year Total","KWh/te"]
["Power Generated","MWh",67078,61859,53893,58485,{"$f":"SUM(C24:F24)","v":241315},{"$f":"G24/G18","v":0.49866987232762}]
["Power Exported",null,55341,51985,51985,43340,{"$f":"SUM(C25:F25)","v":202651},{"$f":"G25/G18","v":0.41877193003777025}]
["Power Used on site",null,{"$f":"C24-C25","v":11737},{"$f":"D24-D25","v":9874},1908,15145,38664,{"$f":"G26/G18","v":7.9897942289849783E-2}]
["Power Imported",null,0,0,55,75,130,{"$f":"G27/G18","v":2.6864091914133228E-4}]
["Parasitic Load","%",{"$f":"(C26/C24)","v":0.17497540177107249},{"$f":"(D26/D24)","v":0.15962107373219742},3.5403484682611841E-2,0.25895528768060189,0.16022211632099123,"-"]
["Thermal Energy Produced ***","MWh",null,null,null,null,0,"-"]
["Thermal Energy Exported ***",null,null,null,null,null,0,"-"]
["R1 value (if applicable)","R1"]
[]
["Waste Disposal & Recovery","Unit","Q1","Q2","Q3","Q4","Year Total","% inputs"]
["APC Residues - produced","tonnes",3819,3207,2825,1358.66,{"$f":"SUM(C34:F34)","v":11209.66},{"$f":"G34/G18","v":2.3164410505090976E-2}]
["IBA - produced",null,22983.96,23724.76,18851.419999999998,20828.75,{"$f":"SUM(C35:F35)","v":86388.89},{"$f":"G35/G18","v":0.17851992933230346}]
["Metals recycling",null,2760.94,25768.34,2167.5,2394.1999999999998,{"$f":"SUM(C36:F36)","v":33090.979999999996},{"$f":"G36/G18","v":6.8381471403749561E-2}]
["ETP Sludge ",null,55.26,306.16000000000003,776.88,276.24,{"$f":"SUM(C37:F37)","v":1414.54},{"$f":"G37/G18","v":2.9231025058629244E-3}]
["Other",null,0,0,0,0,0,"-"]
["Other",null,0,0,0,0,0,"-"]
[]
["Raw Material Usage","Unit","Q1","Q2","Q3","Q4","Year Total","kg or Ltr /te"]
["Mains Water","ltrs",38405000,43183000,44568000,44300000,170456000,{"$f":"G42/G18","v":352.2419731781149}]
["Other Water","ltrs",185945000,222033000,193900000,160549000,762427000,{"$f":"G43/G18","v":1575.5314619859121}]
["Ammonia","kgs",0,0,0,0,0,"-"]
["Urea","kgs",121840,156580,220780,82140,581340,0.12]
["Activated Carbon","kgs",75268,28323,59022,62735,225348,0.05]
["Lime / hydrated lime","kgs",1230893,1035864,832982,802189,3901928,0.87000673364638104]
["Fuel oil","ltrs",null,null,null,null,0,"-"]
["Gas","m3",343030,340800,389710,755380,1828920,0.41]
["Other",null,null,null,null,null,0]
[null,null,null,null,null,null,null,null,null,null,null,null,202651]
["Summary ","Line/Unit","Q1","Q2","Q3","Q4","Year Total",null,"Hrs in year "]
["Availability of waste combustion by line, hrs ****",1,2160,1587,2101.5,1799,{"$f":"SUM(C53:F53)","v":7647.5},{"$f":"G53/8760","v":0.87300228310502281},8760]
[null,2,2044,2078,1240,2095,{"$f":"SUM(C54:F54)","v":7457},{"$f":"G54/8760","v":0.8512557077625571}]
[null,3,2160,2002.2,944,1471.5,6577.7,0.75087899543378989]
[null,4,1963,1639,2075,1976.5,7653.5,0.87368721461187215]
[null,5,1662.5,2094,2208,1695.5,7660,0.87442922374429222]
["Overall Availability, mean avg. of all lines, hrs",null,{"$f":"AVERAGE(C53:C57)","v":1997.9},1880.0400000000002,{"$f":"AVERAGE(E53:E57)","v":1713.7},{"$f":"AVERAGE(F53:F57)","v":1807.5},{"$f":"SUM(C58:F58)","v":7399.14},0.84465068493150686]
["Hours of turbine operations, hrs",1,2119.5,2173,1820.5,1888,8001,0.9133561643835616]
["Hours of turbine operations, hrs",2,2152,2184,1911,2133.5,8380.5,0.95667808219178085]
["Hours of turbine operations, hrs",3,2052,2177,2192,805,7226,0.8248858447488584]
["Hours of turbine operations, hrs",4,862.5,0,0,1448.5,2311,0.26381278538812786]
["Hours of turbine operations, hrs",5,1228.5,1442,1493.2,1442.5,5606.2,{"$f":"G63/8760","v":0.63997716894977164}]
["Hours of heat / steam export (Boiler production)",null,9999,9394,8568,9023,36984,"n/a"]
["Net Calorific Value of waste","MJ/kg",16.427093518324668,15.798734275081301,17.120421318341101,17.999527868465449,{"$f":"AVERAGE(C65:F65)","v":16.83644424505313}]
["Abnormal Events","qty.",null,null,null,null,0,"no"]
["Abnormal operation","hours",0,0,0,0,0,0]
["Permit Breaches","qty.",6,6,13,2,0,"no"]

{"sheet":"Operational Summary","index":5,"n_rows":31,"n_cols":11,"rows_kept":31,"cut":false,"hidden":false,"merged":[[4,0,26,8],[30,0,51,8],[4,10,13,13],[30,10,39,13]]}
["Annual Performance Report 2023",null,null,null,"LondonEnergy Ltd"]
[]
["Summary of Plant Operations and Maintenance during the reporting year",null,null,null,null,null,null,null,null,null,"Notes:"]
[]
["LEL carry out annual Boiler, Turbine and Flue Gas Treatment (FGT) outages to comply with Statutory inspections and testing.\nEach Boiler and FGT's are taken off line, cleaned, inspected visually and by means of Non-Destructive Testing (NDT).\nBoiler tubes are replaced with new where identified to be below standards and all wear parts replaced where required to ensure reliability and reduce downtime.\nTurbines are taken off for survey every four years (one each year) to replace and repair the Turbine blades and bearings to achieve the best efficiency possible.\nDuring the Turbine surveys all mechanical and electrical components i.e. pumps, motors, valves etc are inspected, tested and repaired/replaced as required.\nTA4 run hours low due to alternator rewind",null,null,null,null,null,null,null,null,null,"Include summary of key operational and/or mainteanance activity undertaken in the year, such as any major component upgrades and/or replacements "]
[]
[]
[]
[]
[]
[]
[]
[]
[]
[]
[]
[]
[]
[]
[]
[]
[]
[]
[]
[]
[]
[]
[]
["Summary of Residue Handling for the reporting year"]
[]
["All IBA stored on site for the 48 hour cooling period and then sent to Fortis for processing.\nAll Fly Ash And APCr residues are pnematically conveyed to one of two residue silos, loaded into tankers for precessing at a Castle Environmental facility. ",null,null,null,null,null,null,null,null,null,"Include in here a summary of residue handling regimes and destinations "]

{"sheet":"Perf. Form 1","index":6,"n_rows":54,"n_cols":10,"rows_kept":54,"cut":false,"hidden":false,"merged":[[47,0,47,1],[49,0,49,9],[50,0,51,9],[38,0,38,9],[39,0,40,9],[43,0,43,1],[43,2,43,9],[45,0,45,1],[46,0,46,1],[36,0,36,3],[36,4,36,5],[36,7,36,8],[37,0,37,3],[37,4,37,5],[37,7,37,8],[34,0,34,3],[34,4,34,5],[34,7,34,8],[35,0,35,3],[35,4,35,5],[35,7,35,8],[31,0,31,3],[31,7,31,8],[32,0,32,3],[32,4,32,5],[32,7,32,8],[33,0,33,3],[33,4,33,5],[33,7,33,8],[23,0,23,3],[23,4,23,5],[23,6,23,7],[23,8,23,9],[25,0,25,9],[26,0,28,9],[21,0,21,1],[21,2,21,3],[21,4,21,5],[21,6,21,7],[21,8,21,9],[22,0,22,3],[22,4,22,5],[22,6,22,7],[22,8,22,9],[19,0,19,1],[19,2,19,3],[19,4,19,5],[19,6,19,7],[19,8,19,9],[20,0,20,1],[20,2,20,3],[20,4,20,5],[20,6,20,7],[20,8,20,9],[17,0,17,1],[17,2,17,3],[17,4,17,5],[17,6,17,7],[17,8,17,9],[18,0,18,1],[18,4,18,5],[18,6,18,7],[18,8,18,9],[15,0,15,1],[15,2,15,3],[15,4,15,5],[15,6,15,7],[15,8,15,9],[16,0,16,9],[13,0,13,1],[13,2,13,3],[13,4,13,5],[13,6,13,7],[13,8,13,9],[14,0,14,3],[14,4,14,5],[14,6,14,7],[14,8,14,9],[11,0,11,1],[11,2,11,3],[11,4,11,5],[11,6,11,7],[11,8,11,9],[12,0,12,1],[12,2,12,3],[12,4,12,5],[12,6,12,7],[12,8,12,9],[9,0,9,9],[10,0,10,1],[10,2,10,3],[10,4,10,5],[10,6,10,7],[10,8,10,9],[2,0,2,4],[2,6,2,8],[3,1,3,4],[5,3,5,4],[5,6,5,7],[8,0,8,1],[8,2,8,3],[8,4,8,5],[8,6,8,7],[8,8,8,9]]}
[2023," Annual Reporting Performance Form 1"]
[]
["Permit EPR/YP3033BE",null,null,null,null,"Operator: ",0]
["Facility:","LondonEnergy Ltd",null,null,null,"Form:","Performance 1"]
[]
["Reporting  Period from: ",null,null,"2023-01-01",null,"to:","2023-12-31"]
[]
[2023,"Annual Reporting of Waste Disposal and Recovery"]
["Waste Description",null,"Disposal Route(s)",null,"Disposal Tonnes",null,"Recovery Tonnes",null,"% / tonne of waste incinerated"]
["1) Hazardous Wastes"]
["APC Residues",null,"Castle Environmental ",null,11210,null,null,null,{"$f":"SUM(E11:H11)/'Operational Data'!G18","v":2.3165113104417961E-2}]
["IBA"]
["Bulky waste "]
[]
["Total Hazardous Waste",null,null,null,{"$f":"SUM(E11:F14)","v":11210},null,0,null,{"$f":"SUM(E15:H15)/'Operational Data'!G18","v":2.3165113104417961E-2}]
[]
["2) Non-Hazardous Wastes"]
["IBA",null,"Fortis IBA Ltd",null,null,null,86388.89,null,{"$f":"SUM(G18)/'Operational Data'!G18","v":0.17851992933230346}]
["Ferrous Metal",null,"Metal Recycler",null,null,null,33090.980000000003,null,{"$f":"SUM(G19)/'Operational Data'!G18","v":6.8381471403749575E-2}]
["Process Water"]
["ETP sludge ",null,null,null,1414.54,null,null,null,{"$f":"SUM(E21:H21)/'Operational Data'!G18","v":2.9231025058629244E-3}]
[]
["Total Non-Hazardous Waste",null,null,null,{"$f":"E21","v":1414.54},null,{"$f":"SUM(G18:H22)","v":119479.87},null,{"$f":"SUM(G23)/'Operational Data'!G18","v":0.24690140073605302}]
["TOTAL WASTE",null,null,null,{"$f":"SUM(E11:F14)+E21","v":12624.54},null,{"$f":"SUM(G18:H19)","v":119479.87},null,{"$f":"SUM(E24:H24)/'Operational Data'!G18","v":0.27298961634633395}]
[]
["Operator’s comments :"]
[]
[]
[]
[]
[2023,"Annual Reporting of Water and Other Raw Material Usage"]
["Raw Material",null,null,null,"Usage",null,"Unit","Specific Useage",null,"Unit"]
["Mains Water",null,null,null,{"$f":"'Operational Data'!G42","v":170456000},null,"lts",{"$f":"E33/'Operational Data'!G18","v":352.2419731781149},null,"lts/te"]
["Total Water",null,null,null,{"$f":"'Operational Data'!G43+'Operational Data'!G42","v":932883000},null,"lts",{"$f":"E34/'Operational Data'!G18","v":1927.773435164027},null,"lts/te"]
["Urea / Ammonia",null,null,null,{"$f":"'Operational Data'!G45","v":581340},null,"kg",{"$f":"E35/'Operational Data'!G18","v":1.2013208610278625},null,"kg/te"]
["Activated Carbon",null,null,null,{"$f":"'Operational Data'!G46","v":225348},null,"kg",{"$f":"E36/'Operational Data'!G18","v":0.46567456805123808},null,"kg/te"]
["Lime / hydrated lime / Sodium Bicarb.",null,null,null,{"$f":"'Operational Data'!G47","v":3901928},null,"kg",{"$f":"E37/'Operational Data'!G18","v":8.0632117257176965},null,"kg/te"]
[]
["Operator’s comments :"]
[]
[]
[]
[2023,"Annual Reporting of other performance indicators "]
["Parameter",null,"Results by Line"]
[null,null,"A1","A2","A3","A4","A5",null,"Turbine 1","Turbine 2"]
["Operating hours for the year, hours",null,8760,8760]
["Number of periods of abnormal operation, qty."]
["Cumulative hours of abnormal operation for this year, hours"]
[]
["Operator’s comments :"]
["Due to the nature of the boilers (5 Boilers), flue gas treatment (2 FGT streams) and stack (2 Stacks) configuration for the site, the operating hours is 8760 for each stack. "]
[]
[]
["Signed: ","A. Jemal ",null,null,null,null,"Date:","2024-01-27"]

{"sheet":"Energy Form 1","index":7,"n_rows":29,"n_cols":8,"rows_kept":29,"cut":false,"hidden":false,"merged":[[15,0,15,2],[15,3,15,4],[15,6,15,8],[17,0,17,8],[18,0,24,8],[13,0,13,2],[13,3,13,4],[13,6,13,8],[14,0,14,2],[14,3,14,4],[14,6,14,8],[11,0,11,2],[11,3,11,4],[11,6,11,8],[12,0,12,2],[12,3,12,4],[12,6,12,8],[9,0,9,2],[9,3,9,4],[9,6,9,8],[10,0,10,2],[10,3,10,4],[10,6,10,8],[2,6,2,8],[4,1,4,4],[6,3,6,4],[6,6,6,7],[8,0,8,2],[8,3,8,4],[8,6,8,8]]}
[2023," Annual Reporting of Energy Usage/Export"]
[]
["Permit EPR/YP3033BE",null,null,null,null,"Operator: ","LEL"]
[]
["Facility:","LondonEnergy Ltd",null,null,null,"Form:","Energy 1"]
[]
["Reporting  Period from: ",null,null,"2023-01-01",null,"to:","2023-12-31"]
[]
["Energy Source",null,null,null,null,"Unit","Specific Useage (KWh/tonne incinerated"]
["Electricity Produced",null,null,{"$f":"'Operational Data'!G24","v":241315},null,"MWh",{"$f":"(D10*1000)/'Operational Data'!G18","v":498.66987232762}]
["Electricity Imported   ",null,null,{"$f":"'Operational Data'!G27","v":130},null,"MWh",{"$f":"(D11*1000)/'Operational Data'!G18","v":0.26864091914133231}]
["Electricity Exported",null,null,{"$f":"'Operational Data'!G25","v":202651},null,"MWh",{"$f":"(D12*1000)/'Operational Data'!G18","v":418.77193003777023}]
["Gas Oil",null,null,11458,null,"tonnes"]
["Steam/hot water exported",null,null,0,null,"GWh","-"]
[]
[]
[]
["Operator’s comments :"]
[]
[]
[]
[]
[]
[]
[]
[]
[]
[]
["Signed: ","A. Jemal ",null,null,null,null,"Date:","2024-01-27"]

{"sheet":"Permit Compliance","index":8,"n_rows":54,"n_cols":8,"rows_kept":54,"cut":false,"hidden":false,"merged":[[35,3,35,4],[8,7,16,7],[51,0,51,6],[18,0,18,6],[52,1,52,2],[52,3,52,4],[41,3,41,4],[42,3,42,4],[43,3,43,4],[44,3,44,4],[49,3,49,4],[45,3,45,4],[46,3,46,4],[47,3,47,4],[48,3,48,4],[36,5,37,5],[33,3,33,4],[13,3,13,5],[27,3,27,4],[28,3,28,4],[29,3,29,4],[22,3,22,4],[23,3,23,4],[22,5,24,5],[30,3,30,4],[31,3,31,4],[32,3,32,4],[54,3,54,5],[40,3,40,4],[53,1,53,2],[53,3,53,4],[36,3,36,4],[37,3,37,4],[38,3,38,4],[39,3,39,4],[34,3,34,4],[7,0,7,1],[7,2,7,5],[8,0,8,1],[8,3,8,5],[15,0,15,1],[14,3,14,5],[15,3,15,5],[9,0,9,1],[9,3,9,5],[10,0,10,1],[10,3,10,5],[11,0,11,1],[11,3,11,5],[12,0,12,1],[12,3,12,5],[13,0,13,1],[24,3,24,4],[25,3,25,4],[26,3,26,4],[26,5,29,5],[16,3,16,5],[14,0,14,1],[19,1,19,2],[19,3,19,4],[20,3,20,4],[21,3,21,4],[16,0,16,1]]}
["Annual Performance Report 2023"]
[]
["Summary of Permit Compliance"]
[]
["Compliance with permit limits for continuously monitored pollutants"]
[]
["The plant met its emission limits as shown in the table below:"]
["Substance",null,"Percentage time compliant during operation Note 1",null,null,null,null,"Notes:"]
[null,null,"Half-hourly limit","Daily limit",null,null,null,"Note 1: Please report to 2 decimal places, i.e. xx.xx%\n\nNote 2: Please provide a brief summary of each notification or non-compliance in the table (rather than just referring to notifications that were sent to the Regulator), including stating the value of measured result for any ELV exceedances.   \n\n"]
["Particulates",null,0.99990000000000001,1]
["Oxides of nitrogen",null,0.99980000000000002,1]
["Sulphur dioxide",null,0.99990000000000001,1]
["Carbon monoxide",null,0.99960000000000004,0.99177999999999999]
["Total organic carbon",null,0.999,0.99726000000000004]
["Hydrogen chloride",null,1,1]
["Hydrogen fluoride",null,"NA","NA"]
[null,null,{"$f":"AVERAGE(C10:CXW15)","v":0.99893666666666681},{"$f":"AVERAGE(C10:CXW15)","v":0.99893666666666681}]
[]
["Summary of any notifications or non-compliances under the permit"]
["Date","Summary of notification or non-compliance [including Line/Reference]Note 2",null,"Reason",null,"Measures taken to prevent reoccurrence"]
["2023-01-10","YP3033BE_EP_2023_AE001","1 x 30 minute TOC exceedance was observed between 13:59 – 14:29 pm. During this period, boiler 1 experienced an explosion from a suspected gas bottle causing CO and TOC to momentarily spike to very high levels which subsequently cleared. ","Gas bottle explosion ",null,"Adjustments were made to try to control emissions and to stabilise the boiler, which reduced the emissions following the explosion."]
["2023-02-17","YP3033BE_EP_2023_AE002","The mechanical team were attempting to clear a blockage on the precipitator on boiler 4. An access door was opened in order to remove the blockage to allow the material to move freely. The blockage was cleared, however the material that had built up on top of it started releasing through the opened door. The material built up on the floor under the precipitator and the area was cordoned off and immediately cleared up. ","Lime screw blockage ",null,"Not identified, the door design was different to that typically for the other precipitators - Did not have hinges on the door design. This prevented the door to be opened gradually in a controlled manner. Modifications were made to the door and additional signage has been placed to prevent re-occurance. "]
["2023-03-06","YP3033BE_EP_2023_AE003","6 x 10 minute CO Exceedances contributed towards the 1 x daily Average CO exceedance. Several explosions from Boiler 1 in a short  period of time was noted between 20:00 – 20:30hrs, which caused  the daily average to go over 50 mg/Nm3. The waste from bunker 2 was seen to be wet, which contributed to poor performance.  Emissions of CO decreased, but the daily average recorded 51.14 mg/Nm3 for the day.","Gas bottle explosion ",null,"CO Estimation tool has been developed to anticipate boiler explosion impacts on the emissions to allow a more proactive monitoring method. "]
["2023-03-07","YP3033BE_EP_2023_AE004","9 x 10 minute CO Exceedances observed by several explosions throughout the day. Significant spikes were observed between 19:00 – 20:00 pm within Boiler 3, which affected both A1 and A2 stack emissions. Poor refuse material from Bunker 5 is the expected cause of increased emissions. It was instructed to stop feeding from bunker 5. Further plant adjustments were made and holding burners were put in service to control emissions and stabilise the boiler.","Waste quality "]
["2023-03-07","YP3033BE_EP_2023_AE005","7 x 10 minute CO Exceedances contributing towards the 1 x daily CO exceedance. Significant spikes were observed between 19:00 – 20:00 pm within Boiler 3, which affected both A1 and A2 stack emissions. Poor refuse material from Bunker 5 is the expected cause of increased emissions. It was instructed to stop feeding from bunker 5. Further plant adjustments were made and holding burners were put in service to control emissions and stabilise the boiler. ","Waste quality "]
["2023-03-13","YP3033BE_EP_2023_AE006","30 Minute TOC Exceedance experienced due large gas bottle explosion within Boiler 4, resulting in poor combustion. Adjustments made to maintain stable combustion, but was not able to recover to within our limits in the specified time period.","Gas bottle explosion ",null,"As illustrated in the Part A, the operation team \nwitnessed an explosion within one of the \nboilers. As all other process parameters \nremained in steady state, it is anticipated that the \ncause was a gas bottle entering the system"]
["2023-03-17","YP3033BE_EP_2023_AE007","When bringing boiler 4 offline (Conducting shut down procedure), the gas burner tripped at the late stage of shut down, bringing the temperature below 8500C. This caused an increase in TOC being observed on the North stack, which resulted in a half hourly ELV breach between 23:29hrs to 23:59hrs. Waste was not being fed at the time of the exceedance, but there was residual waste on the grate. ","Burner Trip",null,"In effort to improve gas burner reliability in operation, LEL has called a specialist service contractor to: • Report on the current state of gas burner and what is needed to improve and recommendation for parts to be replaced • Annual Supporting visit for gas burners servicing First visit had taken place on 04/07/2022"]
["2023-04-05","YP3033BE_EP_2023_AE008","1 x 30 minute TOC exceedance: Boiler 2 Feeder Ram stopped operating for a period of time due to a mechanical fault. Whilst recovering the Feeder Ram operation, the Holding Burner tripped, resulting in loss of furnace temperature, which resulted in an increase in emissions. Adjustments were made to try to control emissions and to stabilise the boiler, but we were unable to recover within the specified period.","Burner Trip"]
["2023-04-17","YP3033BE_EP_2023_AE009","1 x 30 minute TOC exceedance – Boiler 2 Drum level was lost during a period of poor quality wet waste from the bottom of bunker 2, forcing the boiler into emergency shut down, resulting in a loss of both gas burners, primary and secondary air fans causing a drop in furnace temperature. Adjustments were made to stabilise the boiler, but we were unable to recover within the specified period.","Burner Trip"]
["2023-05-07","YP3033BE_EP_2023_AE010","1 x 30 minute TOC exceedance – Boiler 5 feeder ram failed due to a false signal, resulting in a gap in the furnace. The holding burner failed to ignite at the same time. Adjustments were made to both the primary and secondary air fans along with use of the startup burner to stabilise the combustion chamber, but we were unable to recover within the specified period. The Holding burner and feeder ram front limit switch have now been repaired & proved to work when required.","Burner Trip"]
["2023-05-26","YP3033BE_EP_2023_AE011","Challenging waste entered the boilers between 10:59am – 11:29am, creating large spike in SO₂ and elevated levels of HCL. The operations team increased lime dosing across Flue Gas Treatment (FGT) Streams 1 & 2 to mitigate raised acidic emissions, however, the team encountered partially blocked lime screws on both streams. The operations team attended the FGT streams and carried out a manual flight aeration and screw unblocking procedure, which increased lime dosing immediately, but there was insufficient time within the 30 minute period to recover from the excessively high SO₂ readings. Emission levels reduced following this and remained low for the remainder of the day.","Waste quality ",null,"Following a review with both the operations team and mechanical department, the following corrective measure is to be placed to prevent re-occurrence. • The frequency of the plant preventative maintenance conducted on the aerators by the mechanical department will be inputted into the system for a weekly check. "]
["2023-05-27","YP3033BE_EP_2023_AE012","Between the period of 13:29hrs to 13:59hrs, challenges were faced with the gas burners (Holding and start-up) on boiler 3, which cause unstable combustion. This resulted in an increase in TOC and CO, which resulted in a 30 minute TOC exceedance of 24 mg/Nm3 in comparison to the emission limit value of 20 mg/Nm3. Combustion conditions stabilised and remained low for the remainder of the day. ","Burner Trip",null,"In effort to improve gas burner reliability in operation, LEL has called a specialist service contractor to: • Report on the current state of gas burner and what is needed to improve and recommendation for parts to be replaced • Annual Supporting visit for gas burners servicing First visit had taken place on 04/07/2025"]
["2023-06-04","YP3033BE_EP_2023_AE013","1 x 30 minute TOC exceedance – Due to feeder ram failure combined with gas burners (holding & start-up) failing on boiler 4. Temporary repair carried out. Spares parts required are on order.","Waste quality ",null,"Following investigation, the following actions will be implemented to target waste quality at the bottom of the bunker: - Operations to add health check of the sump pumps to the daily operational checks - Operations to roll out bunker management instructions to crane drivers."]
["-","YP3033BE_EP_2023_AE014","’There is no exceedance relating to AE014 and this reference number was not used for the 2023 exceedance list","-",null,"-"]
["2023-07-05","YP3033BE_EP_2023_AE015","HCl daily limit exceedance due to challenges with the FGT1 Lime silo discharge screw. As FGT2 is on it’s planned outage, during this period the south stack was only being fed by the FGT1. Boilers 1 & 2 loads were reduced to mitigate emissions. Maintenance department were promptly notified of FGT1 lime silo discharge screw jammed and made efforts to rectify. The MMD successfully un-blocked the line and further support was required by the E&I department to re-instate the operation of the screw. ","Lime screw blockage ",null,"Following an investigation involving the mechanical and operations department the following actions will be performed to mitigate any re-occurrences: - Run Solenoid Failure report on D365 in 6 months time on Lime system (FGT) to review frequency of failure. - Investigate interlock system on Lime Screw feeder(s) system to prevent screw feeding operation when pneumatic valve at exit is closed. Validate effectiveness of logic."]
["2023-07-23","YP3033BE_EP_2023_AE016","TOC 30 minute limit exceedance – Due to a large explosion from suspected gas bottle in boiler 5. Spike was so high the average could not be reduced sufficiently even with a level of 1.1mg for the remaining 25 minutes","Gas bottle explosion ",null,"The site has recently started recording the gas bottles explosions more granular."]
["2023-07-28","YP3033BE_EP_2023_AE017","Late in the evening, one of the sump pumps in the boiler basement tripped. Instead of tripping the local protection, the trip occurred at the main distribution board. This resulted in power issues to both boiler 1 and boiler 5, placing both into emergency shutdown. ","sump pump failure ",null,"Following an investigation involving the E&I and operations department, the following corrective actions were collated: - Design protection is 100 amp fuse. Reduce fuses in sump pump starter within C10 to 63 amp. - Investigate the potential of using C6 as primary instead of C10. This will need coordination with operations on availability for investigation in line with plant availability. - Install smaller capacity fuses to protect 400-amp circuit breaker - Investigate UPS functionality for Boiler 1, 4 & 5 to confirm operating as expected - Create a robust OTNOC plan."]
["2023-07-28","YP3033BE_EP_2023_AE018","Late in the evening, one of the sump pumps in the boiler basement tripped. Instead of tripping the local protection, the trip occurred at the main distribution board. This resulted in power issues to both boiler 1 and boiler 5, placing both into emergency shutdown. Operations also manually conducted an emergency shutdown of boiler 4 due to an increase in water \nflow to the boiler following the shutdown of both boiler 1 & 5. Power was restored to the board and the plant was brought back online in a controlled \nmanner.","sump pump failure "]
["2023-08-04","YP3033BE_EP_2023_AE019","The operations control room lost CEMs communication at 08:15 am. Following further investigation, the connection between the SICK panels and Envirosoft PC (Data Acquisition Handling System (DAHS)) had been lost. IT was requested to attend site out of hours and data returned to the DAHS by 12:30 pm. Information within the CEMs analyser cabinet was still available during the period, but data to the DAHS was not registering and not available during this period. ","Data loss",null,"Following an internal review and discussion with IT, who rectified the issue at the time, the following actions are to be progressed: - Investigate power supply and remediate if required within the CEMS cabinet. - A lesson learnt / Event log is to be circulated to raise awareness of remediation in a similar instance of data loss. - Additional support with the DAHS has been requested from our CEMS system support contractor, which suggested to replace the DSU, which will be pursued by LEL."]
["2023-08-20","YP3033BE_EP_2023_AE020","1 x 30 minute Dust Exceedance whilst attempting to carry out a precoat procedure on FGT Stream No.4 after maintenance. The Main Inlet damper was shut at time of the emission, but as soon as lime was introduced for the precoat, the dust reading increased. Suspect filter bag issue within a compartment. Actions were carried out to reduce dust levels, by shutting down precoat procedure, ceased lime dosing and closing the FGT Stream Main Outlet Damper, but we were unable to recover within the specified 30min period","inadequate procedures",null," • Create Handover procedures or add a section on D365 for works handover (Written and recorded) • A final checklist for MMD handover to be developed"]
["2023-08-21","YP3033BE_EP_2023_AE021","1 x 30 minute TOC exceedance – Boiler 2 Holding Burner ignition and stability issues. Whilst attempting to raise steam on Boiler 2, the holding burner tripped and failed to re-ignite. Root cause found to be damaged cables on a Flame Eye. Flame eye was replaced with alternative and holding burner ignited and burner flame was stable. TOC levels during the period were elevated and reduced once stable flame established. We were however unable to recover to permitted levels within the specified time frame.","Burner Trip",null,"Flame eye was replaced with alternative and further maintenance review conducted. "]
["2023-05-21","YP3033BE_EP_2023_AE022","Following investigation into a discrepancy identified between the NOx values from the south Duty and standby analysers it was identified that an error in the development of the QAL2 function for the south standby analyser was identified during the previous campaign performed by the periodic monitoring company. Data was evaluated eliminating the south standby readings to identify if there were any exceedances with the more accurate analyser.","Function Error",null,"Following further review, the following points have or are to be performed to rectify any information. • Part A reports have been sent to the EA and corrections are to be made to the WID reports sent to discard the error data. • Alterations have been made to the QAL2 contract to ensure 3 yearly QAL2 is performed on the analysers AST / QAL2 tracker has been developed providing visibility on previous and up-coming testing requirements"]
["2023-07-15","YP3033BE_EP_2023_AE023","Following investigation into a discrepancy identified between the NOx values from the south Duty and standby analysers it was identified that an error in the development of the QAL2 function for the south standby analyser was identified during the previous campaign performed by the periodic monitoring company. Data was evaluated eliminating the south standby readings to identify if there were any exceedances with the more accurate analyser.","Function Error",null,"Following further review, the following points have or are to be performed to rectify any information. • Part A reports have been sent to the EA and corrections are to be made to the WID reports sent to discard the error data. • Alterations have been made to the QAL2 contract to ensure 3 yearly QAL2 is performed on the analysers AST / QAL2 tracker has been developed providing visibility on previous and up-coming testing requirements"]
["2023-07-16","YP3033BE_EP_2023_AE024","Following investigation into a discrepancy identified between the NOx values from the south Duty and standby analysers it was identified that an error in the development of the QAL2 function for the south standby analyser was identified during the previous campaign performed by the periodic monitoring company. Data was evaluated eliminating the south standby readings to identify if there were any exceedances with the more accurate analyser.","Function Error",null,"Following further review, the following points have or are to be performed to rectify any information. • Part A reports have been sent to the EA and corrections are to be made to the WID reports sent to discard the error data. • Alterations have been made to the QAL2 contract to ensure 3 yearly QAL2 is performed on the analysers AST / QAL2 tracker has been developed providing visibility on previous and up-coming testing requirements"]
["2023-07-17","YP3033BE_EP_2023_AE025","Following investigation into a discrepancy identified between the NOx values from the south Duty and standby analysers it was identified that an error in the development of the QAL2 function for the south standby analyser was identified during the previous campaign performed by the periodic monitoring company. Data was evaluated eliminating the south standby readings to identify if there were any exceedances with the more accurate analyser.","Function Error",null,"Following further review, the following points have or are to be performed to rectify any information. • Part A reports have been sent to the EA and corrections are to be made to the WID reports sent to discard the error data. • Alterations have been made to the QAL2 contract to ensure 3 yearly QAL2 is performed on the analysers AST / QAL2 tracker has been developed providing visibility on previous and up-coming testing requirements"]
["2023-07-16","YP3033BE_EP_2023_AE026","Following investigation into a discrepancy identified between the NOx values from the south Duty and standby analysers it was identified that an error in the development of the QAL2 function for the south standby analyser was identified during the previous campaign performed by the periodic monitoring company. Data was evaluated eliminating the south standby readings to identify if there were any exceedances with the more accurate analyser.","Function Error",null,"Following further review, the following points have or are to be performed to rectify any information. • Part A reports have been sent to the EA and corrections are to be made to the WID reports sent to discard the error data. • Alterations have been made to the QAL2 contract to ensure 3 yearly QAL2 is performed on the analysers AST / QAL2 tracker has been developed providing visibility on previous and up-coming testing requirements"]
["2023-09-08","YP3033BE_EP_2023_AE027","1 x 30 minute TOC exceedance – Boiler 5 had an explosion \ndue to suspected gas cylinder within waste stream. TOC \nlemissions spiked, O2 reduced to 6.2% and CO emissions\nspiked along with furnace temperature \nspiking to 1000deg c. We were however able to quickly \ncontrol the firing of the boiler and brought the furnace to a \nnormal operating condition within a few minutes but the \nTOC spike took us just over the 30 min permitted levels.","Gas bottle explosion ",null,"All explosions are now being recorded to log the extent of the challenge. LondonEnergy is also investigating the potential of implementing ‘Storing and depressurising nominally empty nitrous oxide canisters: RPS 289’, which will support the correct disposal of gas canisters."]
["2023-10-26","YP3033BE_EP_2023_AE028","following a significant explosion within boiler 5, a high \ndrum level alarm was triggered, forcing the boiler into \nemergency shutdown. This resulted in pro-longed \nelevated emissions at the A2 North stack as the boiler \nbecame off-line. \nThe operations department conducted their standard \nshut-down checks and following cool-down of the boiler \nand on inspection, there was some integrity damage to \nthe quench bath from the explosion. Recording of the \nboiler 5 camera clearly indicates the explosion occurring \nat 17:07 pm. ","Boiler explosion",null,"All explosions are now being recorded to log the extent of the challenge. LondonEnergy is also investigating the potential of implementing ‘Storing and depressurising nominally empty nitrous oxide canisters: RPS 289’, which will support the correct disposal of gas canisters."]
["2023-12-02","YP3033BE_EP_2023_AE029","1 x 30 minute TOC exceedance – Boiler 3 experienced some extremely volatile waste, which created several large spikes in TOC’s and three large CO spikes. TOC levels during the 30 minute period were elevated  and reduced significantly once combustion became stabilised. Several adjustments were made to combustion in an attempt to reduce the elevated levels. We were however unable to recover to within permitted levels within the specified time frame.","Waste quality ",null,"Waste inspections are continuing on the tipping apron by the waste operations team and any non-conforming waste segregated. "]
["2023-12-16","YP3033BE_EP_2023_AE030","Explosion within the boiler resulted in a sharp elevation for both TOC and CO emissions. Due to the nature of the emission, the 30-minute exceedance for TOC was exceeded.","Gas bottle explosion ",null,"All explosions are now being recorded to log the extent of the challenge. LondonEnergy is also investigating the potential of implementing ‘Storing and depressurising nominally empty nitrous oxide canisters: RPS 289’, which will support the correct disposal of gas canisters."]
[]
["Summary of any complaints received and actions to taken to resolve them."]
["Date","Summary of complaint [including Line/Reference]",null,null,null,"Measures taken to prevent reoccurrence"]
["2023-10-10","Caller is reporting the odour from the incinerator at Meridian Waters, London, N18 described as a burning smell and rated as 5/6. It was noticed at 10:05 and is not inside the home with the windows and doors closed. The caller is \n1 mile from the site and the weather is sunny, blue sky, there is a mild breeze, direction unknown. Location in the vicinity of postcode N18 2NS.’’",null,"Incident investigated ",null,"From reviewing the operational conditions of the site on 10th October 2023, there were no abnormal events / incidents logged for the site that may have caused the source of burning smell. Due to the distance between the site and the complaint, it is very likely that a significant fire would be required to formulate a odour that would transport that distance from the incinerator. \n\nThere are several other industrial activities that occur between the site and the complaint location, which may have been the cause of the odour. "]

{"sheet":"Public Liasion","index":9,"n_rows":30,"n_cols":5,"rows_kept":30,"cut":false,"hidden":false,"merged":[[24,0,25,1],[24,2,25,8],[26,0,27,1],[26,2,27,8],[29,0,29,8],[18,0,19,1],[18,2,19,8],[20,0,21,1],[20,2,21,8],[22,0,23,1],[22,2,23,8],[17,0,17,1],[17,2,17,8],[5,0,5,1],[5,2,5,8],[16,0,16,8],[6,0,6,1],[15,0,15,1],[14,0,14,1],[13,0,13,1],[12,0,12,1],[10,0,10,1],[9,0,9,1],[8,0,8,1],[7,0,7,1],[11,0,11,1],[6,2,6,8],[7,2,7,8],[8,2,8,8],[15,2,15,8],[14,2,14,8],[13,2,13,8],[12,2,12,8],[11,2,11,8],[10,2,10,8],[9,2,9,8]]}
["Annual Performance Report 2023",null,null,null,"LondonEnergy Ltd"]
[]
["Details of Public & Stakeholder Liasion"]
[]
["Summary of events held during the reporting year."]
["Date",null,"Description"]
["2023-04-11",null,"LondonEnergy participated at the BuildForce Programme event hosted by the Wates Group. It was great opportunities for the team to discuss to service leaver roles within the energy from waste sector."]
["2023-07-10",null,"We welcomed four year 12 students, from Harris Academy school in Tottenham as part of a week-long mentorship programme aimed at introducing the next generation of talent to the workplace.\n\n Each student was paired with a mentor who provided them with tailored career support. The mentees also took part in a CV workshop and networked with colleagues from throughout our organisation. The mentorship programme was a great success as the students gained valuable insight into the working world and developed their skill set."]
["2023-07-27",null,"Waltham Forest Council – Career Fair – Our HR and Engineering team spoke to local people about LondonEnergy and our current job openings."]
["2023-09-04",null,"Pinehole Community Group – local residents from Islington,  Enfield and Hackney visit the EcoPark to visit our energy plant and see the upcoming resource recovery facility at our EcoPark site. The group were interested to learn how waste and recycling is managed in north London and the plans for the future. "]
["2023-08-08",null,"Armed Forces Careers Fair – Colchester – Recruitment team and LEL Project Manager exhibit at the event to talk about the current electrical and engineering roles to people who have recently left the armed forces. "]
["2023-10-09",null,"VISIONS CIO + CISO UK panel Quartz Network Twickenham Stadium – Our Head of IT  chaired a panel on The Human Factor in Digital Transformation "]
["2023-09-01",null,"Hochschule Konstanz University of Applied Sciences. The students saw first-hand the process of generating energy from waste. They visited areas including the Boilers, Turbines, and Control Room."]
["2023-11-05",null,"Capel Manor College Environmental – Visited the EcoPark to our Energy plant and find out how we manage the waste for Enfield borough residents. "]
["2023-11-30",null,"A-level chemistry students from London Academy of Excellence – Stratford, East London The visit was part of their research work related to their studies. The students wanted to see the process firsthand and learn about the use of waste materials generating energy. "]
["2023-12-10",null,"Middlesex University - Health, safety environmental, and occupational management students visited LondonEnergy as a case study for their dissertations. They wanted to look at the potential use of AI technology in a plant our and to see the impact on reducing human risk. Other students wanted to explore the effectiveness of health and safety training and examine what measures are in place in a work environment at an Energy Centre."]
["List of events planned for next year"]
["Date",null,"Description"]
[]
[]
[]
[]
[]
[]
[]
[]
[]
[]
[]
["If you wish to be involved in the public liasion programme, please contact\n\n deanna.donaldson@londonenergyltd.com"]

{"sheet":"Water","index":10,"n_rows":39,"n_cols":9,"rows_kept":39,"cut":false,"hidden":false,"merged":[[29,0,29,2],[26,0,26,2],[27,0,27,2],[28,0,28,2],[23,0,23,2],[23,3,23,4],[24,0,24,2],[24,3,24,4],[25,0,25,2],[25,3,25,4],[21,0,21,8],[22,0,22,2],[22,3,22,4],[14,0,15,1],[14,2,15,8],[16,0,17,1],[16,2,17,8],[18,0,19,1],[18,2,19,8],[5,0,6,8],[7,0,8,8],[9,0,10,8],[12,0,12,8],[13,0,13,1],[13,2,13,8],[30,0,30,2],[31,0,31,2],[32,0,32,2],[33,0,33,2],[34,0,34,2],[39,0,39,2],[39,3,39,4],[40,0,40,2],[40,3,40,4],[35,0,35,2],[36,0,36,2],[37,0,37,2],[38,0,38,2]]}
["Annual Performance Report 2023",null,null,null,"LondonEnergy Ltd"]
[]
["Emissions to Water"]
[]
["Summary of monitoring undertaken and compliance"]
["Quarterly monitoring of emissions to sewer. Continuous sampling is undertaken. Flow weighted automatic seven day sample is collected. Samples are combined to give a monthly sample, one monthly sample to be analysed per quarter)."]
[]
[]
[]
[]
[]
[]
["Commentary on any specific events"]
["Date & Event",null,"Description"]
["NA",null,"NA"]
[]
[]
[]
[]
[]
[]
["Emissions to Water / Sewer"]
["Parameter",null,null,"Monitoring Frequency",null,"Limit","Target","Max.","Average"]
[" Dieldrin ng/l"," Dieldrin ng/l"," Dieldrin ng/l","Quarterly",null,"50 ng/l","NA","NA",20]
[" Gamma-   Hexachlorocyclohexane ng/l"," Gamma-   Hexachlorocyclohexane ng/l"," Gamma-   Hexachlorocyclohexane ng/l","Quarterly",null,"100 ng/l","NA","NA",20]
[" Polychlorinated biphenyls ng/l"," Polychlorinated biphenyl 28 ng/l"," Polychlorinated biphenyl 28 ng/l","Quarterly",null,"50 ng/l","NA","NA",5]
[" Trifluralin ng/l"," Trifluralin ng/l"," Trifluralin ng/l","Quarterly",null,"50 ng/l","NA","NA",20]
[" Hexachlorobenzene ng/l"," Hexachlorobenzene ng/l"," Hexachlorobenzene ng/l","Quarterly",null,"300 ng/l","NA","NA",20]
[" Hexachlorobutadiene ng/l"," Hexachlorobutadiene ng/l"," Hexachlorobutadiene ng/l","Quarterly",null,"50 ng/l","NA","NA",20]
[" Trichlorobenzene ng/l"," Trichlorobenzene ng/l"," Trichlorobenzene ng/l","Quarterly",null,"50 ng/l","NA","NA",400]
[" Dichlorvos ng/l"," Dichlorvos ng/l"," Dichlorvos ng/l","Quarterly",null,"50 ng/l","NA","NA",20]
[" Fenitrothion ng/l"," Fenitrothion ng/l"," Fenitrothion ng/l","Quarterly",null,"50 ng/l","NA","NA",20]
[" Simazine ng/l"," Simazine ng/l"," Simazine ng/l","Quarterly",null,"300 ng/l","NA","NA",20]
[" Atrazine ng/l"," Atrazine ng/l"," Atrazine ng/l","Quarterly",null,"300 ng/l","NA","NA",20]
[" Pentachlorophenol & it`s   compounds ng/l"," Pentachlorophenol & it`s   compounds ng/l"," Pentachlorophenol & it`s   compounds ng/l","Quarterly",null,"300 ng/l","NA","NA",35]
[" Total Cadmium ug/l"," Total Cadmium ng/l"," Total Cadmium ng/l","Quarterly",null,"50 μg/l","NA","NA",0.1]
[" Total Mercury ug/l "," Total Mercury ng/l "," Total Mercury ng/l ","Quarterly",null,"10 μg/l","NA","NA",0.1]
["Chromium, copper, lead, nickel,silver and zinc in total mg/l",null,null,"Quarterly",null,"5 mg/l","NA","NA",0.83333333333333337]
["Organo-tin ng/l",null,null,"Quarterly",null,"100 ng/l","NA","NA",0.26]

{"sheet":"CO2 N2O","index":11,"n_rows":24,"n_cols":6,"rows_kept":24,"cut":false,"hidden":false,"merged":[[20,2,20,3],[23,1,23,3],[16,2,16,3],[4,0,4,3],[9,0,9,3],[17,0,17,3],[13,0,13,3],[12,0,12,1],[8,2,8,3],[11,2,11,3]]}
["Annual Performance Report 2023",null,"LondonEnergy Ltd"]
[]
["Carbon dioxide emissions and biogenic content of waste inputs",null,null,null,null,"Notes:"]
[]
["Carbon dioxide emissions (all types of plant)"]
[null,"Annual mass of carbon dioxide released","tonnes ",390818.32]
[null,"Annual mass of carbon dioxide released per tonne of waste burned","t CO2 / t waste ",{"$f":"D6/'Operational Data'!G18","v":0.80761379001593336}]
[null,"Annual mass of carbon dioxide released per MWh of energy exported","t CO2 / MWh export ",{"$f":"D6/'Operational Data'!G25","v":1.9285289487838699}]
[null,"Description of how annual carbon dioxide mass emission has been calculated. \nSee Note 1","CEMS data",null,null,"Note 1: Where available, data from CO2 CEMS should be used. \nOtherwise, only where no CEMS data is available, a suitable emissions factor should be used based on the tonnage of waste burned e.g.0.942 tCO2/t waste as per Tolvik report 2022, or other justified emissions factor  - refer to embedded Environment Agency guidance note above or updated version for suitable descriptive text."]
["Nitrous oxide emissions (only plants which use ammonia or urea to abate NOx emissions)"]
[null,"Annual mass emissions of nitrous oxide","tonnes N2O",20.849776566922998]
[null,"Description of how annual nitrous oxide mass emission has been calculated\nSee Note 2","Periodic monitoring data is used for N2O emissions (Bi-annual)\nDue to contractor delays, Q4  results have not been included for Mass N2Q emissions ",null,null,"Note 2: Where available, data from N2O CEMS should be used. \nIf no CEMS data is available, from periodic monitoring. Otherwise, a suitable emissions factor should be used based on the tonnage of waste burned e.g. 0.0981 kgN20/t waste as per 2021 Pollution Inventory data for plants with urea-based SNCR - refer to embedded Environment Agency guidance note above or updated version for suitable descriptive text."]
["Total annual carbon dioxide and nitrous oxide emissions. \nSee Note 3. ",null,"tonnes CO2e",{"$f":"(D11*298)","v":6213.2334169430533},null,"Note 3: Total annual carbon dioxide and nitrous oxide emissions reported as carbon dioxide equivalent where 1 tonne nitrous oxide is equivalent to 298 tonne carbon dioxide"]
["Biogenic CO2 emissions (See Note 4)",null,null,null,null,"Note 4: Only plants combusting residual municipal waste, refuse derived fuel or solid recovered fuel"]
[null,"Percentage of total carbon dioxide emissions arising from biogenic waste","%",0.56000000000000005]
[null,"No. of measurements undertaken","Number","-"]
[null,"Description of how percentage biogenic carbon dioxide emissions have been measured or calculated.\nSee Note 5","the measured of biogenic fraction by net calorific value is assumed to be the same as the biogenic CO2 fraction of the total CO2 emissions from the plant",null,null,"Note 5: Examples include direct measurement via C14 method or BIOMA software - refer to embedded Environment Agency guidance note above or updated version for suitable descriptive text, quoting standards where relevant. \nOtherwise, as an approximation (and in lieu of any more accurate metrics which may be developed in future), the measured or estimated biogenic fraction by net calorific value can be assumed to be the same as the biogenic CO2 fraction of the total CO2 emissions from the plant. "]
["Biogenic fraction of waste feedstock (See Note 4)"]
[null,"Yearly average biogenic percentage of the waste by net calorific value (NCV)","%",0.56025000000000003]
[null,"If sampling undertaken, no. of samples used to ascertain average biogenic % above","Number",3]
[null,"Description of how biogenic percentage (by NCV) has been calculated or estimated. \nSee Note 6","Quarterly waste sampling results by an independent contractor ",null,null,"Note 6: Where available, data from waste sampling should be used; otherwise, an estimated figure with justification can be used, or a figure assumed on the basis of a national average e.g. 2017 WRAP data for residual waste of 51.8% biogenic energy content - refer to embedded Environment Agency guidance note above or updated version for suitable descriptive text, quoting standards where relevant. "]
[]
[null,"Comments:"]
[null,"N2O emissions are now excluded from periodic monitoring and will be part of LEL's continuous emissions monitoring. \nContinuous emissions Reporting start date is December 2023 "]

{"sheet":"Residue Quality ","index":12,"n_rows":35,"n_cols":6,"rows_kept":35,"cut":false,"hidden":false,"merged":[[35,0,40,6],[32,3,32,4],[34,0,34,6],[27,0,28,1],[29,0,29,1],[30,0,30,1],[31,0,31,1],[32,0,32,1],[29,3,29,4],[30,3,30,4],[29,5,29,6],[30,5,30,6],[31,5,31,6],[32,5,32,6],[20,0,21,1],[20,2,21,6],[22,0,23,1],[22,2,23,6],[31,3,31,4],[27,2,28,2],[28,3,28,4],[28,5,28,6],[27,3,27,6],[26,0,26,6],[5,0,6,6],[7,0,8,6],[9,0,10,6],[14,0,15,1],[14,2,15,6],[16,0,17,1],[16,2,17,6],[18,0,19,1],[18,2,19,6],[12,0,12,6],[13,0,13,1],[13,2,13,6]]}
["Annual Performance Report 2023",null,null,null,"LondonEnergy Ltd"]
[]
["Residue Quality Monitoring Requirements"]
[]
["Summary of monitoring undertaken and compliance"]
["Bi-monthly IBA hazardous waste assessments"]
[]
[]
[]
[]
[]
[]
["Commentary on any specific events"]
["Date & Event",null,"Description"]
["NA"]
[]
[]
[]
[]
[]
[]
[]
[]
[]
[]
[]
["Residue Quality Monitoring Results"]
["Parameter (unit) ",null,"Limit","Normal Operation "]
[null,null,null,"Bottom ash  ",null,"APC Residues"]
["Loss on Ignition (average %)",null,"<5%","-"]
["Total Organic Carbon (average %)",null,"<3%",1.17]
["No. of Assessments Undertaken",null,"---",24,null,4]
["No. of Hazardous Results",null,"---",0]
[]
["Comments :"]

{"sheet":"Air (periodic)","index":13,"n_rows":40,"n_cols":13,"rows_kept":40,"cut":false,"hidden":false,"merged":[[13,10,14,12],[15,10,16,10],[15,11,16,11],[15,12,16,12],[18,3,18,4],[13,3,13,4],[14,3,14,4],[15,3,15,4],[16,3,16,4],[17,3,17,4],[21,3,21,4],[22,3,22,4],[23,3,23,4],[24,3,24,4],[31,3,31,4],[25,3,25,4],[26,3,26,4],[28,3,28,4],[38,0,38,9],[19,0,19,1],[20,0,20,1],[21,0,21,1],[34,3,34,4],[35,3,35,4],[33,0,33,1],[34,0,34,1],[35,0,35,1],[36,0,36,1],[24,0,24,1],[32,3,32,4],[27,3,27,4],[33,3,33,4],[19,3,19,4],[20,3,20,4],[39,0,40,9],[25,0,25,1],[26,0,26,1],[22,0,22,1],[23,0,23,1],[37,0,37,1],[27,0,27,1],[28,0,28,1],[29,0,29,1],[30,0,30,1],[31,0,31,1],[32,0,32,1],[37,3,37,4],[29,3,29,4],[30,3,30,4],[36,3,36,4],[16,0,16,1],[17,0,17,1],[18,0,18,1],[13,0,13,1],[14,0,14,1],[15,0,15,1],[12,0,12,1],[11,3,11,4],[12,3,12,4],[9,0,10,1],[9,5,9,9],[9,3,10,4],[9,2,10,2],[5,10,8,13],[9,10,11,13],[8,0,8,9],[5,0,6,9],[11,0,11,1]]}
["Annual Performance Report 2023",null,null,null,"LondonEnergy Ltd"]
[]
["Emissions to Air (periodically monitored)"]
[]
["Summary of monitoring undertaken, standards used and compliance",null,null,null,null,null,null,null,null,null,"Notes:"]
[null,null,null,null,null,null,null,null,null,null,"Template may require adjustment for any bespoke monitoring requirements of permit - please also check that all default ELV values, reference periods and the stated oxygen reference value match those for your plant, and edit if necessary!"]
[]
[]
["Results of emissions to air that are periodically monitored - oxygen reference 6% "]
["Substance",null,"Ref. Period","Emission Limit Value*",null,"Average",null,null,null,null,"User to add additional tables as necessary, depending on whether quarterly or bi-annual reporting is required for the compliance year"]
[null,null,null,null,null,"A1","A2","A3","A4","A5"]
["Hydrogen fluoride",null,"1 hr","2 mg/m3",null,4.6333333333333337E-2,0.04]
["Cd and Th and their compounds",null,"0.5-8hrs","0.05 mg/m3",null,2.5333333333333332E-3,6.3666666666666663E-2]
["Hg and its compounds",null,"0.5-8hrs","0.05 mg/m3",null,1.6666666666666668E-3,1.41E-3,null,null,null,"* Denotes limits that were in force until 2 December 2023; from 3 December 2023 the following new limits applied (those not listed remained unchanged):"]
["Sb, As, Pb, Cr, Co, Cu, Mn, Ni, V and their compounds",null,"0.5-8hrs","0.5 mg/m3",null,4.0586666666666664,6.3666666666666663E-2]
["Dioxins & Furans (I-TEQ)",null,"6-8hrs","0.1 ng/m3",null,3.7000000000000002E-3,1.5950000000000001E-3,null,null,null,"Substance","Reference Period","Emission Limit Value"]
["PCBs (WHO-TEQ Humans / Mammals)",null,"6-8hrs","None set ng/m3",null,2.9050000000000001E-4,1.6550000000000001E-4]
["PCBs (WHO-TEQ Fish)",null,"6-8hrs","None set ng/m3",null,1.3499999999999999E-5,9.0000000000000002E-6,null,null,null,"Hydrogen fluoride","Average of three consecutive measurements of at least 30 minutes each","1 mg/m3"]
["PCBs (WHO-TEQ Birds)",null,"6-8hrs","None set ng/m3",null,1.2955E-3,7.9349999999999993E-4,null,null,null,"Cd and Th and their compounds","Average of three consecutive measurements of at least 30 minutes each","0.02 mg/m3"]
["Dioxins & Furans (WHO-TEQ Humans / Mammals)",null,"6-8hrs","None set ng/m3",null,3.7000000000000002E-3,1.585E-3,null,null,null,"Hg and its compounds","Average of three consecutive measurements of at least 30 minutes each","0.02 mg/m3"]
["Dioxins & Furans (WHO-TEQ Fish)",null,"6-8hrs","None set ng/m3",null,3.7000000000000002E-3,1.5899999999999998E-3,null,null,null,"Sb, As, Pb, Cr, Co, Cu, Mn, Ni, V and their compounds","Average of three consecutive measurements of at least 30 minutes each","0.3 mg/m3"]
["Dioxins & Furans (WHO-TEQ Birds)",null,"6-8hrs","None set ng/m3",null,7.3000000000000001E-3,3.6749999999999999E-3,null,null,null,"Dioxins & Furans (I-TEQ)","6-8hrs","0.06 ng/m3"]
["Anthanthrene",null,"6-8hrs","None set µg/m3",null,2.3E-3,2.3999999999999998E-3]
["Benzo(a)anthracene",null,"6-8hrs","None set µg/m3",null,2.3E-3,2.3999999999999998E-3]
["Benzo(a)pyrene",null,"6-8hrs","None set µg/m3",null,2.3E-3,2.3999999999999998E-3]
["Benzo(b)fluoranthene",null,"6-8hrs","None set µg/m3",null,3.0999999999999999E-3,3.2000000000000002E-3]
["Benzo(b)naptho(2,1-d) thiophene",null,"6-8hrs","None set µg/m3",null,2.3E-3,2.3999999999999998E-3]
["Benzo(c)phenanthrene",null,"6-8hrs","None set µg/m3",null,2.3E-3,2.3999999999999998E-3]
["Benzo(ghi)perylene",null,"6-8hrs","None set µg/m3",null,2.3E-3,2.3999999999999998E-3]
["Benzo(k)fluoranthene",null,"6-8hrs","None set µg/m3",null,2.3E-3,2.3999999999999998E-3]
["Cholanthrene",null,"6-8hrs","None set µg/m3",null,2.3E-3,2.3999999999999998E-3]
["Chrysene",null,"6-8hrs","None set µg/m3",null,3.5000000000000001E-3,3.7000000000000002E-3]
["Cyclopenta(cd)pyrene",null,"6-8hrs","None set µg/m3",null,2.3E-3,2.3999999999999998E-3]
["Dibenzo(ai)pyrene",null,"6-8hrs","None set µg/m3",null,2.3E-3,2.3999999999999998E-3]
["Dibenzo(ah)anthracene",null,"6-8hrs","None set µg/m3",null,2.3E-3,2.3999999999999998E-3]
["Fluoranthene",null,"6-8hrs","None set µg/m3",null,7.1999999999999995E-2,7.5999999999999998E-2]
["Indeno(123-cd) pyrene",null,"6-8hrs","None set µg/m3",null,2.3E-3,2.3999999999999998E-3]
["Naphthalene",null,"6-8hrs","None set µg/m3",null,11.1,16.399999999999999]
["Comments :"]
["Quarterly results for Q1-Q3 were used in the above calacuated emissions. Q4 and Biannual results for July to December are not included due to contractor delays. Air periodic results to be resubmitted once reports are received. \n\nUpdated 29/02/2024- In accordance with our monitoring requirements outlined in the WIBREF variation,  certain parameters have been excluded from the Q4 monitoring and analys,. \n\nDioxins, Furans and PCB: Q4 results added to annual averages. "]

{"sheet":"Air (CEMS)","index":14,"n_rows":28,"n_cols":16,"rows_kept":28,"cut":false,"hidden":false,"merged":[[28,0,29,12],[13,0,14,0],[5,0,6,12],[7,0,8,12],[10,0,10,12],[11,0,12,0],[11,2,12,2],[11,1,12,1],[11,3,11,4],[11,5,11,6],[11,7,11,8],[11,9,11,10],[11,11,11,12],[14,13,15,13],[14,14,15,14],[14,15,15,15],[12,13,13,15],[26,0,26,12]]}
["Annual Performance Report 2023",null,null,null,null,null,null,"LondonEnergy Ltd"]
[]
["Emissions to Air (continously monitored)"]
[null,null,null,null,null,null,null,null,null,null,null,null,null,"Notes:"]
["Summary of monitoring undertaken, standards used and compliance",null,null,null,null,null,null,null,null,null,null,null,null,"Template may require adjustment for any bespoke monitoring requirements of permit"]
[null,null,null,null,null,null,null,null,null,null,null,null,null,"Please check that all default ELV values match those for your plant and edit if necessary!"]
[null,null,null,null,null,null,null,null,null,null,null,null,null,"Report to 1 decimal place"]
[]
[]
[]
["Results of emissions to air that are continuously monitored (maximum and average values for each line) - oxygen reference 11%"]
["Substance","Reference Period","Emission Limit Value**","A1",null,"A2",null,"A3",null,"A4",null,"A5"]
[null,null,null,"Max.","Avg.","Max.","Avg.","Max.","Avg.","Max.","Avg.","Max.","Avg.","** Denotes limits that were in force until 2 December 2023; from 3 December 2023 the following new limits applied (those not listed remained unchanged):"]
["Oxides of nitrogen","Daily mean","200 mg/m3 ",{"$f":"NOx!O19","v":211.4},{"$f":"NOx!N19","v":160.73333333333332},{"$f":"NOx!O34","v":192},{"$f":"NOx!N34","v":157.95833333333334}]
[null,"½ hourly mean","400 mg/m3 ",{"$f":"NOx!N19","v":160.73333333333332},{"$f":"NOx!L19","v":160.73333333333332},{"$f":"NOx!M34","v":312.60000000000002},{"$f":"NOx!L34","v":157.95833333333334},null,null,null,null,null,null,"Substance","Reference Period","Emission Limit Value"]
["Particulates","Daily mean","10 mg/m3",{"$f":"Particulates!O19","v":6},{"$f":"Particulates!N19","v":2.125},{"$f":"Particulates!O34","v":6.3},{"$f":"Particulates!N34","v":1.8916666666666666}]
[null,"½ hourly mean","30 mg/m3 ",{"$f":"Particulates!M19","v":20.9},{"$f":"Particulates!L19","v":2.125},{"$f":"Particulates!M34","v":86.5},{"$f":"Particulates!L34","v":1.8916666666666666},null,null,null,null,null,null,"Oxides of nitrogen","Daily mean","180 mg/m3 "]
["Total Organic Carbon ","Daily mean","10 mg/m3 ",{"$f":"TOC!O19","v":3},{"$f":"TOC!N19","v":0.8583333333333335},{"$f":"TOC!O34","v":34.200000000000003},{"$f":"TOC!N34","v":1.1083333333333334},null,null,null,null,null,null,"Particulates","Daily mean","5 mg/m3 "]
[null,"½ hourly mean","20 mg/m3 ",{"$f":"TOC!M19","v":83.5},{"$f":"TOC!L19","v":0.8583333333333335},{"$f":"TOC!M34","v":567.6},{"$f":"TOC!L34","v":1.1083333333333334},null,null,null,null,null,null,"Hydrogen chloride","Daily mean","8 mg/m3 "]
["Hydrogen chloride ","Daily mean","10 mg/m3 ",{"$f":"HCl!O19","v":10.6},{"$f":"HCl!N19","v":5.8916666666666666},{"$f":"HCl!O34","v":9.5},{"$f":"HCl!N34","v":5.4833333333333316},null,null,null,null,null,null,"Sulphur dioxide","Daily mean","40 mg/m3 "]
[null,"½ hourly mean","60 mg/m3 ",{"$f":"HCl!M19","v":54.3},{"$f":"HCl!L19","v":5.8916666666666666},{"$f":"HCl!M34","v":38.299999999999997},{"$f":"HCl!L34","v":5.4833333333333316},null,null,null,null,null,null,"Ammonia","Daily mean","15 mg/m3 "]
["Sulphur dioxide","Daily mean","50 mg/m3 ",{"$f":"'SO2'!O19","v":32.700000000000003},{"$f":"'SO2'!N19","v":11.033333333333331},{"$f":"'SO2'!O34","v":33.200000000000003},{"$f":"'SO2'!N34","v":12.666666666666666}]
[null,"½ hourly mean","200 mg/m3 ",{"$f":"'SO2'!M19","v":291},{"$f":"'SO2'!L19","v":11.033333333333331},{"$f":"'SO2'!M34","v":149.4},{"$f":"'SO2'!L34","v":12.666666666666666}]
["Carbon monoxide ","Daily mean","50 mg/m3 ",{"$f":"'CO 95% 10 min'!Q22","v":63.1},{"$f":"'CO 95% 10 min'!P22","v":24.383333333333329},{"$f":"'CO 95% 10 min'!Q37","v":57.5},{"$f":"'CO 95% 10 min'!P37","v":26.066666666666663}]
[null,"95%ile 10-min avg *","150 mg/m3 *",{"$f":"'CO 95% 10 min'!M22","v":255.8},{"$f":"'CO 95% 10 min'!N22","v":24.458333333333332},{"$f":"'CO 95% 10 min'!M37","v":491.6},{"$f":"'CO 95% 10 min'!N37","v":26.108333333333334}]
[" Ammonia","Daily mean","No limit set until 03/12/23",{"$f":"'NH3'!$O$19","v":9},{"$f":"'NH3'!$N$19","v":4.8},{"$f":"'NH3'!$O$34","v":9.4},{"$f":"'NH3'!$N$34","v":6.5}]
["** = delete as appropriate, depending on whether your plant has half-horly or 10-min CO ELVs\n"]
["Comments :"]

{"sheet":"NOx","index":15,"n_rows":79,"n_cols":17,"rows_kept":79,"cut":false,"hidden":false,"merged":[[3,16,7,18],[9,16,11,18],[12,16,15,18],[66,9,78,9],[4,1,4,3],[4,4,4,6],[4,9,4,14],[6,9,18,9],[21,9,33,9],[36,9,48,9],[47,0,47,6],[48,0,51,6],[51,9,63,9],[18,4,18,6]]}
["Annual Performance Report 2023",null,null,null,null,null,null,"LondonEnergy Ltd"]
[]
["Monitoring of Oxides of Nitrogen emissions",null,null,"Whole Installation",null,null,"See  Notes in Cell Q3",null,null,"Monitoring of Oxides of Nitrogen emissions",null,null,null,"Per Combustion Line",null,null,"Notes:"]
[null,null,null,null,null,null,null,null,null,null,null,null,null,null,null,null,"User to add logic to complete Whole installation, Table A5:G18. From the data in Per Combustion Line, Table J6:O79, subject to No. of lines installed"]
["mg/Nm3","1/2 Hourly Reference Periods",null,null,"Daily Reference Periods"]
[2023,"1/2 hourly NOx ELV","Monthly 1/2 hourly mean","Highest 1/2 hourly maximum","Daily NOx ELV*","Monthly daily mean","Highest daily maximum",null,null,2023,"mg/Nm3","Monthly 1/2 hourly mean","Monthly 1/2 hourly maximum","Monthly daily mean","Monthly daily maximum"]
["Jan",400,{"$f":"AVERAGE(L7,L22)","v":164.35},{"$f":"MAX(M7,M22)","v":223.7},200,{"$f":"AVERAGE(N7,N22)","v":164.35},{"$f":"MAX(O7,O22)","v":184.5},null,null,"A1","Jan",162.69999999999999,214.8,{"$f":"L7","v":162.69999999999999},180.1]
["Feb",400,{"$f":"AVERAGE(L8,L23)","v":162.55000000000001},{"$f":"MAX(M8,M23)","v":211.6},200,{"$f":"AVERAGE(N8,N23)","v":162.55000000000001},{"$f":"MAX(O8,O23)","v":187.5},null,null,null,"Feb",170.6,211.6,{"$f":"L8","v":170.6},187.5]
["Mar",400,160.65,232.3,200,160.65,199.2,null,null,null,"Mar",167.5,232.3,167.5,199.2,null,"Whole Installation table A5:G18:"]
["Apr",400,156.25,244,200,156.25,185.7,null,null,null,"Apr",165.5,225,165.5,185.7,null,"Mean: for 1/2 hourly and daily periods calculate mean of values across all operational combustion lines for the month"]
["May",400,161.15,239.6,200,161.15,206.2,null,null,null,"May",172.8,239.6,172.8,206.2]
["Jun",400,163.75,239.9,200,163.75,190.1,null,null,null,"Jun",169.7,239.9,169.7,190.1]
["Jul",400,162.69999999999999,241.4,200,162.69999999999999,211.4,null,null,null,"Jul",160.6,241.4,160.6,211.4,null,"Maximum: for 1/2 hourly and daily periods use the highest value across all operational combustion lines for the month"]
["Aug",400,162.75,275.10000000000002,200,162.75,189.5,null,null,null,"Aug",156,229.3,156,184.8]
["Sep",400,161.4,254.9,200,161.4,181.3,null,null,null,"Sep",154.5,202.5,154.5,169.6]
["Oct",400,153.69999999999999,312.60000000000002,200,153.69999999999999,179,null,null,null,"Oct",149.9,206,149.9,179]
["Nov",400,149.30000000000001,207.1,200,149.30000000000001,175.8,null,null,null,"Nov",147.19999999999999,200.6,147.19999999999999,175.8]
["Dec",400,153.60000000000002,219,200,153.60000000000002,170.5,null,null,null,"Dec",151.80000000000001,198.6,151.80000000000001,170.5]
[null,null,null,null,"* ELV reduced to 180 mg/Nm3 on 3 December 2023",null,null,null,null,null,"Annual",{"$f":"AVERAGE(L7:L18)","v":160.73333333333332},{"$f":"MAX(M7:M18)","v":241.4},{"$f":"AVERAGE(N7:N18)","v":160.73333333333332},{"$f":"MAX(O7:O18)","v":211.4}]
[]
[null,null,null,null,null,null,null,null,null,2023,"mg/Nm3","Monthly 1/2 hourly mean","Monthly 1/2 hourly maximum","Monthly daily mean","Monthly daily maximum"]
[null,null,null,null,null,null,null,null,null,"A2","Jan",166,223.7,{"$f":"L22","v":166},184.5]
[null,null,null,null,null,null,null,null,null,null,"Feb",154.5,194.4,{"$f":"L23","v":154.5},173.8]
[null,null,null,null,null,null,null,null,null,null,"Mar",153.80000000000001,229.5,153.80000000000001,177.1]
[null,null,null,null,null,null,null,null,null,null,"Apr",147,244,147,177.6]
[null,null,null,null,null,null,null,null,null,null,"May",149.5,199.9,149.5,175.6]
[null,null,null,null,null,null,null,null,null,null,"Jun",157.80000000000001,226.6,157.80000000000001,186.1]
[null,null,null,null,null,null,null,null,null,null,"Jul",164.8,236.6,164.8,192]
[null,null,null,null,null,null,null,null,null,null,"Aug",169.5,275.10000000000002,169.5,189.5]
[null,null,null,null,null,null,null,null,null,null,"Sep",168.3,254.9,168.3,181.3]
[null,null,null,null,null,null,null,null,null,null,"Oct",157.5,312.60000000000002,157.5,178]
[null,null,null,null,null,null,null,null,null,null,"Nov",151.4,207.1,151.4,172.2]
[null,null,null,null,null,null,null,null,null,null,"Dec",155.4,219,155.4,168.3]
[null,null,null,null,null,null,null,null,null,null,"Annual",{"$f":"AVERAGE(L22:L33)","v":157.95833333333334},{"$f":"MAX(M22:M33)","v":312.60000000000002},{"$f":"AVERAGE(N22:N33)","v":157.95833333333334},{"$f":"MAX(O22:O33)","v":192}]
[]
[null,null,null,null,null,null,null,null,null,2023,"mg/Nm3","Monthly 1/2 hourly mean","Monthly 1/2 hourly maximum","Monthly daily mean","Monthly daily maximum"]
[null,null,null,null,null,null,null,null,null,"A3","Jan"]
[null,null,null,null,null,null,null,null,null,null,"Feb"]
[null,null,null,null,null,null,null,null,null,null,"Mar"]
[null,null,null,null,null,null,null,null,null,null,"Apr"]
[null,null,null,null,null,null,null,null,null,null,"May"]
[null,null,null,null,null,null,null,null,null,null,"Jun"]
[null,null,null,null,null,null,null,null,null,null,"Jul"]
[null,null,null,null,null,null,null,null,null,null,"Aug"]
[null,null,null,null,null,null,null,null,null,null,"Sep"]
[null,null,null,null,null,null,null,null,null,null,"Oct"]
[null,null,null,null,null,null,null,null,null,null,"Nov"]
["Comments :",null,null,null,null,null,null,null,null,null,"Dec"]
[null,null,null,null,null,null,null,null,null,null,"Annual",{"$error":"#DIV/0!"},0,{"$error":"#DIV/0!"},0]
[]
[null,null,null,null,null,null,null,null,null,2023,"mg/Nm3","Monthly 1/2 hourly mean","Monthly 1/2 hourly maximum","Monthly daily mean","Monthly daily maximum"]
[null,null,null,null,null,null,null,null,null,"A4","Jan"]
[null,null,null,null,null,null,null,null,null,null,"Feb"]
[null,null,null,null,null,null,null,null,null,null,"Mar"]
[null,null,null,null,null,null,null,null,null,null,"Apr"]
[null,null,null,null,null,null,null,null,null,null,"May"]
[null,null,null,null,null,null,null,null,null,null,"Jun"]
[null,null,null,null,null,null,null,null,null,null,"Jul"]
[null,null,null,null,null,null,null,null,null,null,"Aug"]
[null,null,null,null,null,null,null,null,null,null,"Sep"]
[null,null,null,null,null,null,null,null,null,null,"Oct"]
[null,null,null,null,null,null,null,null,null,null,"Nov"]
[null,null,null,null,null,null,null,null,null,null,"Dec"]
[null,null,null,null,null,null,null,null,null,null,"Annual",{"$error":"#DIV/0!"},0,{"$error":"#DIV/0!"},0]
[]
[null,null,null,null,null,null,null,null,null,2023,"mg/Nm3","Monthly 1/2 hourly mean","Monthly 1/2 hourly maximum","Monthly daily mean","Monthly daily maximum"]
[null,null,null,null,null,null,null,null,null,"A5","Jan"]
[null,null,null,null,null,null,null,null,null,null,"Feb"]
[null,null,null,null,null,null,null,null,null,null,"Mar"]
[null,null,null,null,null,null,null,null,null,null,"Apr"]
[null,null,null,null,null,null,null,null,null,null,"May"]
[null,null,null,null,null,null,null,null,null,null,"Jun"]
[null,null,null,null,null,null,null,null,null,null,"Jul"]
[null,null,null,null,null,null,null,null,null,null,"Aug"]
[null,null,null,null,null,null,null,null,null,null,"Sep"]
[null,null,null,null,null,null,null,null,null,null,"Oct"]
[null,null,null,null,null,null,null,null,null,null,"Nov"]
[null,null,null,null,null,null,null,null,null,null,"Dec"]
[null,null,null,null,null,null,null,null,null,null,"Annual",{"$error":"#DIV/0!"},0,{"$error":"#DIV/0!"},0]

{"sheet":"HCl","index":16,"n_rows":79,"n_cols":17,"rows_kept":79,"cut":false,"hidden":false,"merged":[[12,16,15,18],[51,9,63,9],[66,9,78,9],[4,9,4,14],[4,1,4,3],[4,4,4,6],[48,0,51,6],[47,0,47,6],[6,9,18,9],[21,9,33,9],[36,9,48,9],[3,16,7,18],[9,16,11,18],[18,4,18,6]]}
["Annual Performance Report 2023",null,null,null,"LondonEnergy Ltd"]
[]
["Monitoring of Hydrogen Chloride emissions",null,null,"Whole Installation",null,null,"See  Notes in Cell Q3",null,null,"Monitoring of Hydrogen Chloride emissions",null,null,null,"Per Combustion Line",null,null,"Notes:"]
[null,null,null,null,null,null,null,null,null,null,null,null,null,null,null,null,"User to add logic to complete Whole installation, Table A5:G18. From the data in Per Combustion Line, Table J6:O79, subject to No. of lines installed"]
["mg/Nm3","1/2 Hourly Reference Periods",null,null,"Daily Reference Periods"]
[2023,"1/2 hourly HCl ELV","Monthly 1/2 hourly mean","Highest 1/2 hourly maximum","Daily HCl ELV*","Monthly daily mean","Highest daily maximum",null,null,2023,"mg/Nm3","Monthly 1/2 hourly mean","Monthly 1/2 hourly maximum","Monthly daily mean","Monthly daily maximum"]
["Jan",60,{"$f":"AVERAGE(L7,L22)","v":5.9499999999999993},{"$f":"MAX(M7,M22)","v":25.6},10,{"$f":"AVERAGE(N7,N22)","v":5.9499999999999993},{"$f":"MAX(O7,O22)","v":9.1999999999999993},null,null,"A1","Jan",6.1,25.6,{"$f":"L7","v":6.1},8.6]
["Feb",60,{"$f":"AVERAGE(L8,L23)","v":5.85},{"$f":"MAX(M8,M23)","v":54.3},10,{"$f":"AVERAGE(N8,N23)","v":5.85},{"$f":"MAX(O8,O23)","v":9.3000000000000007},null,null,null,"Feb",6.1,54.3,{"$f":"L8","v":6.1},9.3000000000000007]
["Mar",60,{"$f":"AVERAGE(L9,L24)","v":5.95},38.299999999999997,10,{"$f":"AVERAGE(N9,N24)","v":5.95},9.3000000000000007,null,null,null,"Mar",6.5,29.1,6.5,9.3000000000000007,null,"Whole Installation table A5:G18:"]
["Apr",60,{"$f":"AVERAGE(L10,L25)","v":6.9},48.1,10,{"$f":"AVERAGE(N10,N25)","v":6.9},9.5,null,null,null,"Apr",7.4,48.1,7.4,9.5,null,"Mean: for 1/2 hourly and daily periods calculate mean of values across all operational combustion lines for the month"]
["May",60,{"$f":"AVERAGE(L11,L26)","v":6.1},32.9,10,{"$f":"AVERAGE(N11,N26)","v":6.1},9.6,null,null,null,"May",6.8,32.9,6.8,9.6]
["Jun",60,{"$f":"AVERAGE(L12,L27)","v":6.55},33,10,{"$f":"AVERAGE(N12,N27)","v":6.55},9.5,null,null,null,"Jun",6.5,33,6.5,8.4]
["Jul",60,{"$f":"AVERAGE(L13,L28)","v":6.35},41.9,10,{"$f":"AVERAGE(N13,N28)","v":6.35},10.6,null,null,null,"Jul",6.1,41.9,6.1,10.6,null,"Maximum: for 1/2 hourly and daily periods use the highest value across all operational combustion lines for the month"]
["Aug",60,{"$f":"AVERAGE(L14,L29)","v":5.7},44.6,10,{"$f":"AVERAGE(N14,N29)","v":5.7},8.3000000000000007,null,null,null,"Aug",5.4,44.6,5.4,8.3000000000000007]
["Sep",60,{"$f":"AVERAGE(L15,L30)","v":5.2},17.7,10,{"$f":"AVERAGE(N15,N30)","v":5.2},7.9,null,null,null,"Sep",5.5,17.7,5.5,7.8]
["Oct",60,{"$f":"AVERAGE(L16,L31)","v":4.1500000000000004},30.4,10,{"$f":"AVERAGE(N16,N31)","v":4.1500000000000004},6.7,null,null,null,"Oct",4,30.4,4,6.1]
["Nov",60,{"$f":"AVERAGE(L17,L32)","v":3.9499999999999997},21.8,10,{"$f":"AVERAGE(N17,N32)","v":3.9499999999999997},6.4,null,null,null,"Nov",4.5999999999999996,15.6,4.5999999999999996,6.3]
["Dec",60,{"$f":"AVERAGE(L18,L33)","v":5.6},35.700000000000003,10,{"$f":"AVERAGE(N18,N33)","v":5.6},7.5,null,null,null,"Dec",5.7,35.700000000000003,5.7,7.5]
[null,null,null,null,"* ELV reduced to 8 mg/Nm3 on 3 December 2023",null,null,null,null,null,"Annual",{"$f":"AVERAGE(L7:L18)","v":5.8916666666666666},{"$f":"MAX(M7:M18)","v":54.3},{"$f":"AVERAGE(N7:N18)","v":5.8916666666666666},{"$f":"MAX(O7:O18)","v":10.6}]
[]
[null,null,null,null,null,null,null,null,null,2023,"mg/Nm3","Monthly 1/2 hourly mean","Monthly 1/2 hourly maximum","Monthly daily mean","Monthly daily maximum"]
[null,null,null,null,null,null,null,null,null,"A2","Jan",5.8,21.2,{"$f":"L22","v":5.8},9.1999999999999993]
[null,null,null,null,null,null,null,null,null,null,"Feb",5.6,34.4,{"$f":"L23","v":5.6},7.5]
[null,null,null,null,null,null,null,null,null,null,"Mar",5.4,38.299999999999997,5.4,7.5]
[null,null,null,null,null,null,null,null,null,null,"Apr",6.4,21.6,6.4,8.6]
[null,null,null,null,null,null,null,null,null,null,"May",5.4,32.799999999999997,5.4,8.9]
[null,null,null,null,null,null,null,null,null,null,"Jun",6.6,25.8,6.6,9.5]
[null,null,null,null,null,null,null,null,null,null,"Jul",6.6,15,6.6,8.5]
[null,null,null,null,null,null,null,null,null,null,"Aug",6,13.6,6,7.5]
[null,null,null,null,null,null,null,null,null,null,"Sep",4.9000000000000004,14.9,4.9000000000000004,7.9]
[null,null,null,null,null,null,null,null,null,null,"Oct",4.3,17.8,4.3,6.7]
[null,null,null,null,null,null,null,null,null,null,"Nov",3.3,21.8,3.3,6.4]
[null,null,null,null,null,null,null,null,null,null,"Dec",5.5,32.4,5.5,7]
[null,null,null,null,null,null,null,null,null,null,"Annual",{"$f":"AVERAGE(L22:L33)","v":5.4833333333333316},{"$f":"MAX(M22:M33)","v":38.299999999999997},{"$f":"AVERAGE(N22:N33)","v":5.4833333333333316},{"$f":"MAX(O22:O33)","v":9.5}]
[]
[null,null,null,null,null,null,null,null,null,2023,"mg/Nm3","Monthly 1/2 hourly mean","Monthly 1/2 hourly maximum","Monthly daily mean","Monthly daily maximum"]
[null,null,null,null,null,null,null,null,null,"A3","Jan"]
[null,null,null,null,null,null,null,null,null,null,"Feb"]
[null,null,null,null,null,null,null,null,null,null,"Mar"]
[null,null,null,null,null,null,null,null,null,null,"Apr"]
[null,null,null,null,null,null,null,null,null,null,"May"]
[null,null,null,null,null,null,null,null,null,null,"Jun"]
[null,null,null,null,null,null,null,null,null,null,"Jul"]
[null,null,null,null,null,null,null,null,null,null,"Aug"]
[null,null,null,null,null,null,null,null,null,null,"Sep"]
[null,null,null,null,null,null,null,null,null,null,"Oct"]
[null,null,null,null,null,null,null,null,null,null,"Nov"]
["Comments :",null,null,null,null,null,null,null,null,null,"Dec"]
[null,null,null,null,null,null,null,null,null,null,"Annual",{"$error":"#DIV/0!"},0,{"$error":"#DIV/0!"},0]
[]
[null,null,null,null,null,null,null,null,null,2023,"mg/Nm3","Monthly 1/2 hourly mean","Monthly 1/2 hourly maximum","Monthly daily mean","Monthly daily maximum"]
[null,null,null,null,null,null,null,null,null,"A4","Jan"]
[null,null,null,null,null,null,null,null,null,null,"Feb"]
[null,null,null,null,null,null,null,null,null,null,"Mar"]
[null,null,null,null,null,null,null,null,null,null,"Apr"]
[null,null,null,null,null,null,null,null,null,null,"May"]
[null,null,null,null,null,null,null,null,null,null,"Jun"]
[null,null,null,null,null,null,null,null,null,null,"Jul"]
[null,null,null,null,null,null,null,null,null,null,"Aug"]
[null,null,null,null,null,null,null,null,null,null,"Sep"]
[null,null,null,null,null,null,null,null,null,null,"Oct"]
[null,null,null,null,null,null,null,null,null,null,"Nov"]
[null,null,null,null,null,null,null,null,null,null,"Dec"]
[null,null,null,null,null,null,null,null,null,null,"Annual",{"$error":"#DIV/0!"},0,{"$error":"#DIV/0!"},0]
[]
[null,null,null,null,null,null,null,null,null,2023,"mg/Nm3","Monthly 1/2 hourly mean","Monthly 1/2 hourly maximum","Monthly daily mean","Monthly daily maximum"]
[null,null,null,null,null,null,null,null,null,"A5","Jan"]
[null,null,null,null,null,null,null,null,null,null,"Feb"]
[null,null,null,null,null,null,null,null,null,null,"Mar"]
[null,null,null,null,null,null,null,null,null,null,"Apr"]
[null,null,null,null,null,null,null,null,null,null,"May"]
[null,null,null,null,null,null,null,null,null,null,"Jun"]
[null,null,null,null,null,null,null,null,null,null,"Jul"]
[null,null,null,null,null,null,null,null,null,null,"Aug"]
[null,null,null,null,null,null,null,null,null,null,"Sep"]
[null,null,null,null,null,null,null,null,null,null,"Oct"]
[null,null,null,null,null,null,null,null,null,null,"Nov"]
[null,null,null,null,null,null,null,null,null,null,"Dec"]
[null,null,null,null,null,null,null,null,null,null,"Annual",{"$error":"#DIV/0!"},0,{"$error":"#DIV/0!"},0]

{"sheet":"SO2","index":17,"n_rows":79,"n_cols":17,"rows_kept":79,"cut":false,"hidden":false,"merged":[[3,16,7,18],[9,16,11,18],[12,16,15,18],[66,9,78,9],[4,1,4,3],[4,4,4,6],[4,9,4,14],[6,9,18,9],[21,9,33,9],[36,9,48,9],[47,0,47,6],[48,0,51,6],[51,9,63,9],[18,4,18,6]]}
["Annual Performance Report 2023",null,null,null,"LondonEnergy Ltd"]
[]
["Monitoring of Sulphur dioxide emissions",null,null,"Whole Installation",null,null,"See  Notes in Cell Q3",null,null,"Monitoring of Sulphur dioxide emissions",null,null,null,"Per Combustion Line",null,null,"Notes:"]
[null,null,null,null,null,null,null,null,null,null,null,null,null,null,null,null,"User to add logic to complete Whole installation, Table A5:G18. From the data in Per Combustion Line, Table J6:O79, subject to No. of lines installed"]
["mg/Nm3","1/2 Hourly Reference Periods",null,null,"Daily Reference Periods"]
[2023,"1/2 hourly SO2 ELV","Monthly 1/2 hourly mean","Highest 1/2 hourly maximum","Daily SO2 ELV*","Monthly daily mean","Highest daily maximum",null,null,2023,"mg/Nm3","Monthly 1/2 hourly mean","Monthly 1/2 hourly maximum","Monthly daily mean","Monthly daily maximum"]
["Jan",200,{"$f":"AVERAGE(L7,L22)","v":13.95},{"$f":"MAX(M7,M22)","v":64.400000000000006},50,{"$f":"AVERAGE(N7,N22)","v":13.95},{"$f":"MAX(O7,O22)","v":29.6},null,null,"A1","Jan",10.1,43.9,{"$f":"L7","v":10.1},18.3]
["Feb",200,{"$f":"AVERAGE(L8,L23)","v":17.3},{"$f":"MAX(M8,M23)","v":161.30000000000001},50,{"$f":"AVERAGE(N8,N23)","v":17.3},{"$f":"MAX(O8,O23)","v":33.200000000000003},null,null,null,"Feb",16.3,161.30000000000001,{"$f":"L8","v":16.3},32.700000000000003]
["Mar",200,{"$f":"AVERAGE(L9,L24)","v":14},124.9,50,{"$f":"AVERAGE(N9,N24)","v":14},23.1,null,null,null,"Mar",15,124.9,15,23.1,null,"Whole Installation table A5:G18:"]
["Apr",200,{"$f":"AVERAGE(L10,L25)","v":15.399999999999999},91.9,50,{"$f":"AVERAGE(N10,N25)","v":15.399999999999999},31.9,null,null,null,"Apr",13.9,65.599999999999994,13.9,24,null,"Mean: for 1/2 hourly and daily periods calculate mean of values across all operational combustion lines for the month"]
["May",200,{"$f":"AVERAGE(L11,L26)","v":13.7},291,50,{"$f":"AVERAGE(N11,N26)","v":13.7},23.5,null,null,null,"May",13.6,291,13.6,23.5]
["Jun",200,{"$f":"AVERAGE(L12,L27)","v":14.35},116.7,50,{"$f":"AVERAGE(N12,N27)","v":14.35},25.3,null,null,null,"Jun",13,87.5,13,20.2]
["Jul",200,{"$f":"AVERAGE(L13,L28)","v":11.149999999999999},32.700000000000003,50,{"$f":"AVERAGE(N13,N28)","v":11.149999999999999},17.600000000000001,null,null,null,"Jul",10.6,30.6,10.6,17.600000000000001,null,"Maximum: for 1/2 hourly and daily periods use the highest value across all operational combustion lines for the month"]
["Aug",200,{"$f":"AVERAGE(L14,L29)","v":10.3},38.200000000000003,50,{"$f":"AVERAGE(N14,N29)","v":10.3},17.8,null,null,null,"Aug",8.6999999999999993,38.1,8.6999999999999993,13.4]
["Sep",200,{"$f":"AVERAGE(L15,L30)","v":8.3000000000000007},33.700000000000003,50,{"$f":"AVERAGE(N15,N30)","v":8.3000000000000007},16.2,null,null,null,"Sep",8.1999999999999993,32,8.1999999999999993,13.5]
["Oct",200,{"$f":"AVERAGE(L16,L31)","v":7.35},30.6,50,{"$f":"AVERAGE(N16,N31)","v":7.35},14.4,null,null,null,"Oct",7.2,30.6,7.2,14.1]
["Nov",200,{"$f":"AVERAGE(L17,L32)","v":5.75},36.9,50,{"$f":"AVERAGE(N17,N32)","v":5.75},13.3,null,null,null,"Nov",5.6,21.4,5.6,10.9]
["Dec",200,{"$f":"AVERAGE(L18,L33)","v":10.649999999999999},159,50,{"$f":"AVERAGE(N18,N33)","v":10.649999999999999},27.1,null,null,null,"Dec",10.199999999999999,159,10.199999999999999,27.1]
[null,null,null,null,"* ELV reduced to 40 mg/Nm3 on 3 December 2023",null,null,null,null,null,"Annual",{"$f":"AVERAGE(L7:L18)","v":11.033333333333331},{"$f":"MAX(M7:M18)","v":291},{"$f":"AVERAGE(N7:N18)","v":11.033333333333331},{"$f":"MAX(O7:O18)","v":32.700000000000003}]
[]
[null,null,null,null,null,null,null,null,null,2023,"mg/Nm3","Monthly 1/2 hourly mean","Monthly 1/2 hourly maximum","Monthly daily mean","Monthly daily maximum"]
[null,null,null,null,null,null,null,null,null,"A2","Jan",17.8,64.400000000000006,{"$f":"L22","v":17.8},29.6]
[null,null,null,null,null,null,null,null,null,null,"Feb",18.3,94.1,{"$f":"L23","v":18.3},33.200000000000003]
[null,null,null,null,null,null,null,null,null,null,"Mar",13,106.2,13,20.100000000000001]
[null,null,null,null,null,null,null,null,null,null,"Apr",16.899999999999999,91.9,16.899999999999999,31.9]
[null,null,null,null,null,null,null,null,null,null,"May",13.8,149.4,13.8,22]
[null,null,null,null,null,null,null,null,null,null,"Jun",15.7,116.7,15.7,25.3]
[null,null,null,null,null,null,null,null,null,null,"Jul",11.7,32.700000000000003,11.7,15]
[null,null,null,null,null,null,null,null,null,null,"Aug",11.9,38.200000000000003,11.9,17.8]
[null,null,null,null,null,null,null,null,null,null,"Sep",8.4,33.700000000000003,8.4,16.2]
[null,null,null,null,null,null,null,null,null,null,"Oct",7.5,28.2,7.5,14.4]
[null,null,null,null,null,null,null,null,null,null,"Nov",5.9,36.9,5.9,13.3]
[null,null,null,null,null,null,null,null,null,null,"Dec",11.1,107.4,11.1,22.9]
[null,null,null,null,null,null,null,null,null,null,"Annual",{"$f":"AVERAGE(L22:L33)","v":12.666666666666666},{"$f":"MAX(M22:M33)","v":149.4},{"$f":"AVERAGE(N22:N33)","v":12.666666666666666},{"$f":"MAX(O22:O33)","v":33.200000000000003}]
[]
[null,null,null,null,null,null,null,null,null,2023,"mg/Nm3","Monthly 1/2 hourly mean","Monthly 1/2 hourly maximum","Monthly daily mean","Monthly daily maximum"]
[null,null,null,null,null,null,null,null,null,"A3","Jan"]
[null,null,null,null,null,null,null,null,null,null,"Feb"]
[null,null,null,null,null,null,null,null,null,null,"Mar"]
[null,null,null,null,null,null,null,null,null,null,"Apr"]
[null,null,null,null,null,null,null,null,null,null,"May"]
[null,null,null,null,null,null,null,null,null,null,"Jun"]
[null,null,null,null,null,null,null,null,null,null,"Jul"]
[null,null,null,null,null,null,null,null,null,null,"Aug"]
[null,null,null,null,null,null,null,null,null,null,"Sep"]
[null,null,null,null,null,null,null,null,null,null,"Oct"]
[null,null,null,null,null,null,null,null,null,null,"Nov"]
["Comments :",null,null,null,null,null,null,null,null,null,"Dec"]
[null,null,null,null,null,null,null,null,null,null,"Annual",{"$error":"#DIV/0!"},0,{"$error":"#DIV/0!"},0]
[]
[null,null,null,null,null,null,null,null,null,2023,"mg/Nm3","Monthly 1/2 hourly mean","Monthly 1/2 hourly maximum","Monthly daily mean","Monthly daily maximum"]
[null,null,null,null,null,null,null,null,null,"A4","Jan"]
[null,null,null,null,null,null,null,null,null,null,"Feb"]
[null,null,null,null,null,null,null,null,null,null,"Mar"]
[null,null,null,null,null,null,null,null,null,null,"Apr"]
[null,null,null,null,null,null,null,null,null,null,"May"]
[null,null,null,null,null,null,null,null,null,null,"Jun"]
[null,null,null,null,null,null,null,null,null,null,"Jul"]
[null,null,null,null,null,null,null,null,null,null,"Aug"]
[null,null,null,null,null,null,null,null,null,null,"Sep"]
[null,null,null,null,null,null,null,null,null,null,"Oct"]
[null,null,null,null,null,null,null,null,null,null,"Nov"]
[null,null,null,null,null,null,null,null,null,null,"Dec"]
[null,null,null,null,null,null,null,null,null,null,"Annual",{"$error":"#DIV/0!"},0,{"$error":"#DIV/0!"},0]
[]
[null,null,null,null,null,null,null,null,null,2023,"mg/Nm3","Monthly 1/2 hourly mean","Monthly 1/2 hourly maximum","Monthly daily mean","Monthly daily maximum"]
[null,null,null,null,null,null,null,null,null,"A5","Jan"]
[null,null,null,null,null,null,null,null,null,null,"Feb"]
[null,null,null,null,null,null,null,null,null,null,"Mar"]
[null,null,null,null,null,null,null,null,null,null,"Apr"]
[null,null,null,null,null,null,null,null,null,null,"May"]
[null,null,null,null,null,null,null,null,null,null,"Jun"]
[null,null,null,null,null,null,null,null,null,null,"Jul"]
[null,null,null,null,null,null,null,null,null,null,"Aug"]
[null,null,null,null,null,null,null,null,null,null,"Sep"]
[null,null,null,null,null,null,null,null,null,null,"Oct"]
[null,null,null,null,null,null,null,null,null,null,"Nov"]
[null,null,null,null,null,null,null,null,null,null,"Dec"]
[null,null,null,null,null,null,null,null,null,null,"Annual",{"$error":"#DIV/0!"},0,{"$error":"#DIV/0!"},0]

{"sheet":"NH3","index":18,"n_rows":79,"n_cols":17,"rows_kept":79,"cut":false,"hidden":false,"merged":[[3,16,7,18],[9,16,11,18],[12,16,15,18],[66,9,78,9],[4,1,4,3],[4,4,4,6],[4,9,4,14],[6,9,18,9],[21,9,33,9],[36,9,48,9],[47,0,47,6],[48,0,51,6],[51,9,63,9],[18,4,18,6]]}
["Annual Performance Report 2023",null,null,null,"LondonEnergy Ltd"]
[]
["Monitoring of Ammnonia emissions ",null,null,"Whole Installation",null,null,"See  Notes in Cell Q3",null,null,"Monitoring of Ammnonia emissions ",null,null,null,"Per Combustion Line",null,null,"Notes:"]
[null,null,null,null,null,null,null,null,null,null,null,null,null,null,null,null,"User to add logic to complete Whole installation, Table A5:G18. From the data in Per Combustion Line, Table J6:O79, subject to No. of lines installed"]
["mg/Nm3","1/2 Hourly Reference Periods",null,null,"Daily Reference Periods"]
[2023,"1/2 hourly NH3 ELV","Monthly 1/2 hourly mean","Highest 1/2 hourly maximum","Daily NH3 ELV*","Monthly daily mean","Highest daily maximum",null,null,2023,"mg/Nm3","Monthly 1/2 hourly mean","Monthly 1/2 hourly maximum","Monthly daily mean","Monthly daily maximum"]
["Jan","None","-","-","None","-","-",null,null,"A1","Jan","-","-","-","-"]
["Feb","None","-","-","None","-","-",null,null,null,"Feb","-","-","-","-"]
["Mar","None","-","-","None","-","-",null,null,null,"Mar","-","-","-","-",null,"Whole Installation table A5:G18:"]
["Apr","None","-","-","None","-","-",null,null,null,"Apr","-","-","-","-",null,"Mean: for 1/2 hourly and daily periods calculate mean of values across all operational combustion lines for the month"]
["May","None","-","-","None","-","-",null,null,null,"May","-","-","-","-"]
["Jun","None","-","-","None","-","-",null,null,null,"Jun","-","-","-","-"]
["Jul","None","-","-","None","-","-",null,null,null,"Jul","-","-","-","-",null,"Maximum: for 1/2 hourly and daily periods use the highest value across all operational combustion lines for the month"]
["Aug","None","-","-","None","-","-",null,null,null,"Aug","-","-","-","-"]
["Sep","None","-","-","None","-","-",null,null,null,"Sep","-","-","-","-"]
["Oct","None","-","-","None","-","-",null,null,null,"Oct","-","-","-","-"]
["Nov","None","-","-","None","-","-",null,null,null,"Nov","-","-","-","-"]
["Dec","None",{"$f":"AVERAGE(L18,L33)","v":5.65},{"$f":"MAX(M18,M33)","v":25.3},15,{"$f":"AVERAGE(N18,N33)","v":5.65},{"$f":"MAX(O18,O33)","v":9.4},null,null,null,"Dec",4.8,22.5,{"$f":"L18","v":4.8},9]
[null,null,null,null,"* ELV came into force on 3 December 2023",null,null,null,null,null,"Annual",{"$f":"AVERAGE(L7:L18)","v":4.8},{"$f":"MAX(M7:M18)","v":22.5},{"$f":"AVERAGE(N7:N18)","v":4.8},{"$f":"MAX(O7:O18)","v":9}]
[]
[null,null,null,null,null,null,null,null,null,2023,"mg/Nm3","Monthly 1/2 hourly mean","Monthly 1/2 hourly maximum","Monthly daily mean","Monthly daily maximum"]
[null,null,null,null,null,null,null,null,null,"A2","Jan","-","-","-","-"]
[null,null,null,null,null,null,null,null,null,null,"Feb","-","-","-","-"]
[null,null,null,null,null,null,null,null,null,null,"Mar","-","-","-","-"]
[null,null,null,null,null,null,null,null,null,null,"Apr","-","-","-","-"]
[null,null,null,null,null,null,null,null,null,null,"May","-","-","-","-"]
[null,null,null,null,null,null,null,null,null,null,"Jun","-","-","-","-"]
[null,null,null,null,null,null,null,null,null,null,"Jul","-","-","-","-"]
[null,null,null,null,null,null,null,null,null,null,"Aug","-","-","-","-"]
[null,null,null,null,null,null,null,null,null,null,"Sep","-","-","-","-"]
[null,null,null,null,null,null,null,null,null,null,"Oct","-","-","-","-"]
[null,null,null,null,null,null,null,null,null,null,"Nov","-","-","-","-"]
[null,null,null,null,null,null,null,null,null,null,"Dec",6.5,25.3,{"$f":"L33","v":6.5},9.4]
[null,null,null,null,null,null,null,null,null,null,"Annual",{"$f":"AVERAGE(L22:L33)","v":6.5},{"$f":"MAX(M22:M33)","v":25.3},{"$f":"AVERAGE(N22:N33)","v":6.5},{"$f":"MAX(O22:O33)","v":9.4}]
[]
[null,null,null,null,null,null,null,null,null,2023,"mg/Nm3","Monthly 1/2 hourly mean","Monthly 1/2 hourly maximum","Monthly daily mean","Monthly daily maximum"]
[null,null,null,null,null,null,null,null,null,"A3","Jan"]
[null,null,null,null,null,null,null,null,null,null,"Feb"]
[null,null,null,null,null,null,null,null,null,null,"Mar"]
[null,null,null,null,null,null,null,null,null,null,"Apr"]
[null,null,null,null,null,null,null,null,null,null,"May"]
[null,null,null,null,null,null,null,null,null,null,"Jun"]
[null,null,null,null,null,null,null,null,null,null,"Jul"]
[null,null,null,null,null,null,null,null,null,null,"Aug"]
[null,null,null,null,null,null,null,null,null,null,"Sep"]
[null,null,null,null,null,null,null,null,null,null,"Oct"]
[null,null,null,null,null,null,null,null,null,null,"Nov"]
["Comments :",null,null,null,null,null,null,null,null,null,"Dec"]
["An indicated ELV value of zero in the table above means that no ammonia limit is/was set in the permit.  ",null,null,null,null,null,null,null,null,null,"Annual",{"$error":"#DIV/0!"},0,{"$error":"#DIV/0!"},0]
[]
[null,null,null,null,null,null,null,null,null,2023,"mg/Nm3","Monthly 1/2 hourly mean","Monthly 1/2 hourly maximum","Monthly daily mean","Monthly daily maximum"]
[null,null,null,null,null,null,null,null,null,"A4","Jan"]
[null,null,null,null,null,null,null,null,null,null,"Feb"]
[null,null,null,null,null,null,null,null,null,null,"Mar"]
[null,null,null,null,null,null,null,null,null,null,"Apr"]
[null,null,null,null,null,null,null,null,null,null,"May"]
[null,null,null,null,null,null,null,null,null,null,"Jun"]
[null,null,null,null,null,null,null,null,null,null,"Jul"]
[null,null,null,null,null,null,null,null,null,null,"Aug"]
[null,null,null,null,null,null,null,null,null,null,"Sep"]
[null,null,null,null,null,null,null,null,null,null,"Oct"]
[null,null,null,null,null,null,null,null,null,null,"Nov"]
[null,null,null,null,null,null,null,null,null,null,"Dec"]
[null,null,null,null,null,null,null,null,null,null,"Annual",{"$error":"#DIV/0!"},0,{"$error":"#DIV/0!"},0]
[]
[null,null,null,null,null,null,null,null,null,2023,"mg/Nm3","Monthly 1/2 hourly mean","Monthly 1/2 hourly maximum","Monthly daily mean","Monthly daily maximum"]
[null,null,null,null,null,null,null,null,null,"A5","Jan"]
[null,null,null,null,null,null,null,null,null,null,"Feb"]
[null,null,null,null,null,null,null,null,null,null,"Mar"]
[null,null,null,null,null,null,null,null,null,null,"Apr"]
[null,null,null,null,null,null,null,null,null,null,"May"]
[null,null,null,null,null,null,null,null,null,null,"Jun"]
[null,null,null,null,null,null,null,null,null,null,"Jul"]
[null,null,null,null,null,null,null,null,null,null,"Aug"]
[null,null,null,null,null,null,null,null,null,null,"Sep"]
[null,null,null,null,null,null,null,null,null,null,"Oct"]
[null,null,null,null,null,null,null,null,null,null,"Nov"]
[null,null,null,null,null,null,null,null,null,null,"Dec"]
[null,null,null,null,null,null,null,null,null,null,"Annual",{"$error":"#DIV/0!"},0,{"$error":"#DIV/0!"},0]

{"sheet":"TOC","index":19,"n_rows":79,"n_cols":17,"rows_kept":79,"cut":false,"hidden":false,"merged":[[3,16,7,18],[9,16,11,18],[12,16,15,18],[66,9,78,9],[4,1,4,3],[4,4,4,6],[4,9,4,14],[6,9,18,9],[21,9,33,9],[36,9,48,9],[47,0,47,6],[48,0,51,6],[51,9,63,9]]}
["Annual Performance Report 2023",null,null,null,"LondonEnergy Ltd"]
[]
["Monitoring of Total organic carbon emissions",null,null,"Whole Installation",null,null,"See  Notes in Cell Q3",null,null,"Monitoring of Total organic carbon emissions",null,null,null,"Per Combustion Line",null,null,"Notes:"]
[null,null,null,null,null,null,null,null,null,null,null,null,null,null,null,null,"User to add logic to complete Whole installation, Table A5:G18. From the data in Per Combustion Line, Table J6:O79, subject to No. of lines installed"]
["mg/Nm3","1/2 Hourly Reference Periods",null,null,"Daily Reference Periods"]
[2023,"1/2 hourly TOC ELV","Monthly 1/2 hourly mean","Highest 1/2 hourly maximum","Daily TOC ELV","Monthly daily mean","Highest daily maximum",null,null,2023,"mg/Nm3","Monthly 1/2 hourly mean","Monthly 1/2 hourly maximum","Monthly daily mean","Monthly daily maximum"]
["Jan",20,{"$f":"AVERAGE(L7,L22)","v":0.9},{"$f":"MAX(M7,M22)","v":83.5},10,{"$f":"AVERAGE(N7,N22)","v":0.9},{"$f":"MAX(O7,O22)","v":3},null,null,"A1","Jan",0.7,83.5,{"$f":"L7","v":0.7},3]
["Feb",20,{"$f":"AVERAGE(L8,L23)","v":0.75},{"$f":"MAX(M8,M23)","v":16.3},10,{"$f":"AVERAGE(N8,N23)","v":0.75},{"$f":"MAX(O8,O23)","v":2.4},null,null,null,"Feb",0.5,9.8000000000000007,{"$f":"L8","v":0.5},0.9]
["Mar",20,0.9,43.2,10,0.9,4.2,null,null,null,"Mar",0.7,15.3,0.7,1.5,null,"Whole Installation table A5:G18:"]
["Apr",20,1,37.799999999999997,10,1,2.2000000000000002,null,null,null,"Apr",0.9,37.799999999999997,0.9,2,null,"Mean: for 1/2 hourly and daily periods calculate mean of values across all operational combustion lines for the month"]
["May",20,1.1499999999999999,25,10,1.1499999999999999,2.6,null,null,null,"May",1,16,1,1.9]
["Jun",20,1,69.2,10,1,2.8,null,null,null,"Jun",0.9,12.6,0.9,2]
["Jul",20,0.9,30.9,10,0.9,2.2000000000000002,null,null,null,"Jul",1,19.5,1,1.7,null,"Maximum: for 1/2 hourly and daily periods use the highest value across all operational combustion lines for the month"]
["Aug",20,1.05,22.5,10,1.05,2.8,null,null,null,"Aug",1,22.5,1,1.8]
["Sep",20,1.05,22.7,10,1.05,3.2,null,null,null,"Sep",1.1000000000000001,21.1,1.1000000000000001,2.5]
["Oct",20,1.5,567.6,10,1.5,34.200000000000003,null,null,null,"Oct",0.9,12.6,0.9,2.1]
["Nov",20,0.85000000000000009,15.7,10,0.85000000000000009,2.1,null,null,null,"Nov",0.8,13.7,0.8,1.4]
["Dec",20,0.75,27.8,10,0.75,2,null,null,null,"Dec",0.8,27.8,0.8,2]
[null,null,null,null,null,null,null,null,null,null,"Annual",{"$f":"AVERAGE(L7:L18)","v":0.8583333333333335},{"$f":"MAX(M7:M18)","v":83.5},{"$f":"AVERAGE(N7:N18)","v":0.8583333333333335},{"$f":"MAX(O7:O18)","v":3}]
[]
[null,null,null,null,null,null,null,null,null,2023,"mg/Nm3","Monthly 1/2 hourly mean","Monthly 1/2 hourly maximum","Monthly daily mean","Monthly daily maximum"]
[null,null,null,null,null,null,null,null,null,"A2","Jan",1.1000000000000001,13.2,{"$f":"L22","v":1.1000000000000001},2.6]
[null,null,null,null,null,null,null,null,null,null,"Feb",1,16.3,{"$f":"L23","v":1},2.4]
[null,null,null,null,null,null,null,null,null,null,"Mar",1.1000000000000001,43.2,1.1000000000000001,4.2]
[null,null,null,null,null,null,null,null,null,null,"Apr",1.1000000000000001,15.6,1.1000000000000001,2.2000000000000002]
[null,null,null,null,null,null,null,null,null,null,"May",1.3,25,1.3,2.6]
[null,null,null,null,null,null,null,null,null,null,"Jun",1.1000000000000001,69.2,1.1000000000000001,2.8]
[null,null,null,null,null,null,null,null,null,null,"Jul",0.8,30.9,0.8,2.2000000000000002]
[null,null,null,null,null,null,null,null,null,null,"Aug",1.1000000000000001,16.399999999999999,1.1000000000000001,2.8]
[null,null,null,null,null,null,null,null,null,null,"Sep",1,22.7,1,3.2]
[null,null,null,null,null,null,null,null,null,null,"Oct",2.1,567.6,2.1,34.200000000000003]
[null,null,null,null,null,null,null,null,null,null,"Nov",0.9,15.7,0.9,2.1]
[null,null,null,null,null,null,null,null,null,null,"Dec",0.7,15.8,0.7,1.2]
[null,null,null,null,null,null,null,null,null,null,"Annual",{"$f":"AVERAGE(L22:L33)","v":1.1083333333333334},{"$f":"MAX(M22:M33)","v":567.6},{"$f":"AVERAGE(N22:N33)","v":1.1083333333333334},{"$f":"MAX(O22:O33)","v":34.200000000000003}]
[]
[null,null,null,null,null,null,null,null,null,2023,"mg/Nm3","Monthly 1/2 hourly mean","Monthly 1/2 hourly maximum","Monthly daily mean","Monthly daily maximum"]
[null,null,null,null,null,null,null,null,null,"A3","Jan"]
[null,null,null,null,null,null,null,null,null,null,"Feb"]
[null,null,null,null,null,null,null,null,null,null,"Mar"]
[null,null,null,null,null,null,null,null,null,null,"Apr"]
[null,null,null,null,null,null,null,null,null,null,"May"]
[null,null,null,null,null,null,null,null,null,null,"Jun"]
[null,null,null,null,null,null,null,null,null,null,"Jul"]
[null,null,null,null,null,null,null,null,null,null,"Aug"]
[null,null,null,null,null,null,null,null,null,null,"Sep"]
[null,null,null,null,null,null,null,null,null,null,"Oct"]
[null,null,null,null,null,null,null,null,null,null,"Nov"]
["Comments :",null,null,null,null,null,null,null,null,null,"Dec"]
[null,null,null,null,null,null,null,null,null,null,"Annual",{"$error":"#DIV/0!"},0,{"$error":"#DIV/0!"},0]
[]
[null,null,null,null,null,null,null,null,null,2023,"mg/Nm3","Monthly 1/2 hourly mean","Monthly 1/2 hourly maximum","Monthly daily mean","Monthly daily maximum"]
[null,null,null,null,null,null,null,null,null,"A4","Jan"]
[null,null,null,null,null,null,null,null,null,null,"Feb"]
[null,null,null,null,null,null,null,null,null,null,"Mar"]
[null,null,null,null,null,null,null,null,null,null,"Apr"]
[null,null,null,null,null,null,null,null,null,null,"May"]
[null,null,null,null,null,null,null,null,null,null,"Jun"]
[null,null,null,null,null,null,null,null,null,null,"Jul"]
[null,null,null,null,null,null,null,null,null,null,"Aug"]
[null,null,null,null,null,null,null,null,null,null,"Sep"]
[null,null,null,null,null,null,null,null,null,null,"Oct"]
[null,null,null,null,null,null,null,null,null,null,"Nov"]
[null,null,null,null,null,null,null,null,null,null,"Dec"]
[null,null,null,null,null,null,null,null,null,null,"Annual",{"$error":"#DIV/0!"},0,{"$error":"#DIV/0!"},0]
[]
[null,null,null,null,null,null,null,null,null,2023,"mg/Nm3","Monthly 1/2 hourly mean","Monthly 1/2 hourly maximum","Monthly daily mean","Monthly daily maximum"]
[null,null,null,null,null,null,null,null,null,"A5","Jan"]
[null,null,null,null,null,null,null,null,null,null,"Feb"]
[null,null,null,null,null,null,null,null,null,null,"Mar"]
[null,null,null,null,null,null,null,null,null,null,"Apr"]
[null,null,null,null,null,null,null,null,null,null,"May"]
[null,null,null,null,null,null,null,null,null,null,"Jun"]
[null,null,null,null,null,null,null,null,null,null,"Jul"]
[null,null,null,null,null,null,null,null,null,null,"Aug"]
[null,null,null,null,null,null,null,null,null,null,"Sep"]
[null,null,null,null,null,null,null,null,null,null,"Oct"]
[null,null,null,null,null,null,null,null,null,null,"Nov"]
[null,null,null,null,null,null,null,null,null,null,"Dec"]
[null,null,null,null,null,null,null,null,null,null,"Annual",{"$error":"#DIV/0!"},0,{"$error":"#DIV/0!"},0]

{"sheet":"Particulates","index":20,"n_rows":79,"n_cols":17,"rows_kept":79,"cut":false,"hidden":false,"merged":[[3,16,7,18],[9,16,11,18],[12,16,15,18],[66,9,78,9],[4,1,4,3],[4,4,4,6],[4,9,4,14],[6,9,18,9],[21,9,33,9],[36,9,48,9],[47,0,47,6],[48,0,51,6],[51,9,63,9],[18,4,18,6]]}
["Annual Performance Report 2023",null,null,null,"LondonEnergy Ltd"]
[]
["Monitoring of Particulate matter emissions",null,null,"Whole Installation",null,null,"See  Notes in Cell Q3",null,null,"Monitoring of Particulate matter emissions",null,null,null,"Per Combustion Line",null,null,"Notes:"]
[null,null,null,null,null,null,null,null,null,null,null,null,null,null,null,null,"User to add logic to complete Whole installation, Table A5:G18. From the data in Per Combustion Line, Table J6:O79, subject to No. of lines installed"]
["mg/Nm3","1/2 Hourly Reference Periods",null,null,"Daily Reference Periods"]
[2023,"1/2 hourly PM ELV","Monthly 1/2 hourly mean","Highest 1/2 hourly maximum","Daily PM ELV*","Monthly daily mean","Highest daily maximum",null,null,2023,"mg/Nm3","Monthly 1/2 hourly mean","Monthly 1/2 hourly maximum","Monthly daily mean","Monthly daily maximum"]
["Jan",30,{"$f":"AVERAGE(L7,L22)","v":2.5},{"$f":"MAX(M7,M22)","v":7.8},10,{"$f":"AVERAGE(N7,N22)","v":2.5},{"$f":"MAX(O7,O22)","v":3.3},null,null,"A1","Jan",2.6,7.8,{"$f":"L7","v":2.6},3.3]
["Feb",30,{"$f":"AVERAGE(L8,L23)","v":2.6},{"$f":"MAX(M8,M23)","v":6.3},10,{"$f":"AVERAGE(N8,N23)","v":2.6},{"$f":"MAX(O8,O23)","v":3.5},null,null,null,"Feb",2.7,6.3,{"$f":"L8","v":2.7},3.5]
["Mar",30,2.8,8.8000000000000007,10,2.8,5,null,null,null,"Mar",2.6,8.8000000000000007,2.6,3.7,null,"Whole Installation table A5:G18:"]
["Apr",30,3.6500000000000004,17.2,10,3.6500000000000004,6,null,null,null,"Apr",3.1,9.9,3.1,6,null,"Mean: for 1/2 hourly and daily periods calculate mean of values across all operational combustion lines for the month"]
["May",30,3.25,23.7,10,3.25,6.3,null,null,null,"May",3.1,20.9,3.1,5]
["Jun",30,1.65,86.5,10,1.65,3.6,null,null,null,"Jun",2.1,13.9,2.1,3.6]
["Jul",30,1.3,18.2,10,1.3,2.7,null,null,null,"Jul",1.7,18.2,1.7,2.7,null,"Maximum: for 1/2 hourly and daily periods use the highest value across all operational combustion lines for the month"]
["Aug",30,1.35,40,10,1.35,3.1,null,null,null,"Aug",1.7,17.7,1.7,3.1]
["Sep",30,1.5,8.4,10,1.5,2.4,null,null,null,"Sep",1.8,8.4,1.8,2.4]
["Oct",30,1.1499999999999999,8.5,10,1.1499999999999999,2.8,null,null,null,"Oct",1.2,5.0999999999999996,1.2,1.7]
["Nov",30,1.1000000000000001,8.6,10,1.1000000000000001,1.6,null,null,null,"Nov",1.3,8.5,1.3,1.6]
["Dec",30,1.25,16.600000000000001,10,1.25,2.2999999999999998,null,null,null,"Dec",1.6,16.600000000000001,1.6,2.2999999999999998]
[null,null,null,null,"* ELV reduced to 5 mg/Nm3 on 3 December 2023",null,null,null,null,null,"Annual",{"$f":"AVERAGE(L7:L18)","v":2.125},{"$f":"MAX(M7:M18)","v":20.9},{"$f":"AVERAGE(N7:N18)","v":2.125},{"$f":"MAX(O7:O18)","v":6}]
[]
[null,null,null,null,null,null,null,null,null,2023,"mg/Nm3","Monthly 1/2 hourly mean","Monthly 1/2 hourly maximum","Monthly daily mean","Monthly daily maximum"]
[null,null,null,null,null,null,null,null,null,"A2","Jan",2.4,5.0999999999999996,{"$f":"L22","v":2.4},2.8]
[null,null,null,null,null,null,null,null,null,null,"Feb",2.5,5.4,{"$f":"L23","v":2.5},3.2]
[null,null,null,null,null,null,null,null,null,null,"Mar",3,7.2,3,5]
[null,null,null,null,null,null,null,null,null,null,"Apr",4.2,17.2,4.2,5.3]
[null,null,null,null,null,null,null,null,null,null,"May",3.4,23.7,3.4,6.3]
[null,null,null,null,null,null,null,null,null,null,"Jun",1.2,86.5,1.2,3.5]
[null,null,null,null,null,null,null,null,null,null,"Jul",0.9,11.6,0.9,2.4]
[null,null,null,null,null,null,null,null,null,null,"Aug",1,40,1,2.6]
[null,null,null,null,null,null,null,null,null,null,"Sep",1.2,7.6,1.2,2.1]
[null,null,null,null,null,null,null,null,null,null,"Oct",1.1000000000000001,8.5,1.1000000000000001,2.8]
[null,null,null,null,null,null,null,null,null,null,"Nov",0.9,8.6,0.9,1.3]
[null,null,null,null,null,null,null,null,null,null,"Dec",0.9,3.5,0.9,1]
[null,null,null,null,null,null,null,null,null,null,"Annual",{"$f":"AVERAGE(L22:L33)","v":1.8916666666666666},{"$f":"MAX(M22:M33)","v":86.5},{"$f":"AVERAGE(N22:N33)","v":1.8916666666666666},{"$f":"MAX(O22:O33)","v":6.3}]
[]
[null,null,null,null,null,null,null,null,null,2023,"mg/Nm3","Monthly 1/2 hourly mean","Monthly 1/2 hourly maximum","Monthly daily mean","Monthly daily maximum"]
[null,null,null,null,null,null,null,null,null,"A3","Jan"]
[null,null,null,null,null,null,null,null,null,null,"Feb"]
[null,null,null,null,null,null,null,null,null,null,"Mar"]
[null,null,null,null,null,null,null,null,null,null,"Apr"]
[null,null,null,null,null,null,null,null,null,null,"May"]
[null,null,null,null,null,null,null,null,null,null,"Jun"]
[null,null,null,null,null,null,null,null,null,null,"Jul"]
[null,null,null,null,null,null,null,null,null,null,"Aug"]
[null,null,null,null,null,null,null,null,null,null,"Sep"]
[null,null,null,null,null,null,null,null,null,null,"Oct"]
[null,null,null,null,null,null,null,null,null,null,"Nov"]
["Comments :",null,null,null,null,null,null,null,null,null,"Dec"]
[null,null,null,null,null,null,null,null,null,null,"Annual",{"$error":"#DIV/0!"},0,{"$error":"#DIV/0!"},0]
[]
[null,null,null,null,null,null,null,null,null,2023,"mg/Nm3","Monthly 1/2 hourly mean","Monthly 1/2 hourly maximum","Monthly daily mean","Monthly daily maximum"]
[null,null,null,null,null,null,null,null,null,"A4","Jan"]
[null,null,null,null,null,null,null,null,null,null,"Feb"]
[null,null,null,null,null,null,null,null,null,null,"Mar"]
[null,null,null,null,null,null,null,null,null,null,"Apr"]
[null,null,null,null,null,null,null,null,null,null,"May"]
[null,null,null,null,null,null,null,null,null,null,"Jun"]
[null,null,null,null,null,null,null,null,null,null,"Jul"]
[null,null,null,null,null,null,null,null,null,null,"Aug"]
[null,null,null,null,null,null,null,null,null,null,"Sep"]
[null,null,null,null,null,null,null,null,null,null,"Oct"]
[null,null,null,null,null,null,null,null,null,null,"Nov"]
[null,null,null,null,null,null,null,null,null,null,"Dec"]
[null,null,null,null,null,null,null,null,null,null,"Annual",{"$error":"#DIV/0!"},0,{"$error":"#DIV/0!"},0]
[]
[null,null,null,null,null,null,null,null,null,2023,"mg/Nm3","Monthly 1/2 hourly mean","Monthly 1/2 hourly maximum","Monthly daily mean","Monthly daily maximum"]
[null,null,null,null,null,null,null,null,null,"A5","Jan"]
[null,null,null,null,null,null,null,null,null,null,"Feb"]
[null,null,null,null,null,null,null,null,null,null,"Mar"]
[null,null,null,null,null,null,null,null,null,null,"Apr"]
[null,null,null,null,null,null,null,null,null,null,"May"]
[null,null,null,null,null,null,null,null,null,null,"Jun"]
[null,null,null,null,null,null,null,null,null,null,"Jul"]
[null,null,null,null,null,null,null,null,null,null,"Aug"]
[null,null,null,null,null,null,null,null,null,null,"Sep"]
[null,null,null,null,null,null,null,null,null,null,"Oct"]
[null,null,null,null,null,null,null,null,null,null,"Nov"]
[null,null,null,null,null,null,null,null,null,null,"Dec"]
[null,null,null,null,null,null,null,null,null,null,"Annual",{"$error":"#DIV/0!"},0,{"$error":"#DIV/0!"},0]

{"sheet":"CO 95% 10 min","index":21,"n_rows":82,"n_cols":19,"rows_kept":82,"cut":false,"hidden":false,"merged":[[4,0,5,7],[6,18,10,20],[12,18,14,20],[15,18,18,20],[69,10,81,10],[7,1,7,4],[7,5,7,7],[7,10,7,16],[9,10,21,10],[24,10,36,10],[39,10,51,10],[50,0,50,7],[51,0,54,7],[54,10,66,10]]}
["Annual Performance Report 2023",null,null,null,"LondonEnergy Ltd"]
[]
["Monitoring of Carbon Monoxide (10-minute avg)",null,null,null,"Whole Installation",null,null,"See  Notes in Cell S3",null,"Monitoring of Carbon Monoxide (10-minute avg)",null,null,null,null,"Per Combustion Line",null,"Notes:",null,"Notes:"]
[]
["Please complete this tab for your plant if you have 10-minute average CO ELVs; otherwise, leave it blank and complete the CO 0.5 hourly tab"]
[]
[null,null,null,null,null,null,null,null,null,null,null,null,null,null,null,null,null,null,"User to add logic to complete Whole installation, Table A5:H18. From the data in Per Combustion Line, Table K6:Q79, subject to No. of lines installed"]
["mg/Nm3","10-minute Reference Periods",null,null,null,"Daily Reference Periods"]
[2023,"95%ile 10-min avg CO ELV","95%ile 10-min avg maximum","Monthly CO 10-min avg mean","10-min avg maximum","Daily CO ELV","Monthly daily mean","Highest daily maximum",null,null,2023,"mg/Nm3","95%ile 10-min avg maximum","Monthly CO 10-min avg mean","10-min avg maximum","Monthly daily mean","Monthly daily maximum"]
["Jan",150,{"$f":"MAX(M10,M25)","v":122.3},{"$f":"AVERAGE(M10,M25)","v":118.15},{"$f":"MAX(N10,N25)","v":29.4},50,{"$f":"AVERAGE(O10,O25)","v":814.8},{"$f":"MAX(P10,P25)","v":29.4},null,null,"A1","Jan",122.3,27,814.8,27,45.8]
["Feb",150,{"$f":"MAX(M11,M26)","v":97.8},{"$f":"AVERAGE(M11,M26)","v":97.449999999999989},{"$f":"MAX(N11,N26)","v":28.7},50,{"$f":"AVERAGE(O11,O26)","v":666.34999999999991},{"$f":"MAX(P11,P26)","v":28.7},null,null,null,"Feb",97.8,28.7,856.8,28.7,41.6]
["Mar",150,159.19999999999999,151.14999999999998,28.5,50,797.6,28.5,null,null,null,"Mar",143.1,26.5,822.5,26.4,63.1,null,"Whole Installation table A5:H18:"]
["Apr",150,135.30000000000001,121.2,26,50,410.85,26,null,null,null,"Apr",107.1,25.4,460.5,25.4,38.799999999999997,null,"Mean: for 10-min and daily periods use average of all operational combustion lines."]
["May",150,129.9,128.44999999999999,26.9,50,603.1,26.9,null,null,null,"May",129.9,26.9,460.2,26.9,46]
["Jun",150,139.6,107.94999999999999,22.5,50,650.20000000000005,22.4,null,null,null,"Jun",76.3,18.899999999999999,257.89999999999998,18.2,31.3]
["Jul",150,255.8,248.60000000000002,20.2,50,1346.05,20.2,null,null,null,"Jul",255.8,17.8,1149.8,17.899999999999999,55.6,null,"Maximum: for 10-min and daily periods use the highest of all operational combustion lines in any month."]
["Aug",150,133.5,131.85,21.7,50,571.45000000000005,21.7,null,null,null,"Aug",130.19999999999999,20.2,490.1,20.2,31.9]
["Sep",150,116.2,107.45,22.4,50,808.45,22.3,null,null,null,"Sep",98.7,22.3,711.1,22.2,37.299999999999997]
["Oct",150,491.6,304.75,33.6,50,1422.65,33.6,null,null,null,"Oct",117.9,23.2,477.5,23.2,48.2]
["Nov",150,136.69999999999999,131.25,32.299999999999997,50,407,32.299999999999997,null,null,null,"Nov",125.8,29.2,362.9,29.1,45.1]
["Dec",150,118.7,105.15,29.8,50,718.35,29.7,null,null,null,"Dec",91.6,27.4,745.6,27.4,38.700000000000003]
[null,null,null,null,null,null,null,null,null,null,null,"Annual",{"$f":"MAX(M10:M21)","v":255.8},{"$f":"AVERAGE(N10:N21)","v":24.458333333333332},{"$f":"MAX(O10:O21)","v":1149.8},{"$f":"AVERAGE(P10:P21)","v":24.383333333333329},{"$f":"MAX(Q10:Q21)","v":63.1}]
[]
[null,null,null,null,null,null,null,null,null,null,2023,"mg/Nm3","95%ile 10-min avg maximum","Monthly CO 10-min avg mean","10-min avg maximum","Monthly daily mean","Monthly daily maximum"]
[null,null,null,null,null,null,null,null,null,null,"A2","Jan",114,29.4,"809.9475.9",{"$f":"N25","v":29.4},45.6]
[null,null,null,null,null,null,null,null,null,null,null,"Feb",97.1,25.4,475.9,25.3,34]
[null,null,null,null,null,null,null,null,null,null,null,"Mar",159.19999999999999,28.5,772.7,{"$f":"N27","v":28.5},42.5]
[null,null,null,null,null,null,null,null,null,null,null,"Apr",135.30000000000001,26,361.2,26,42.6]
[null,null,null,null,null,null,null,null,null,null,null,"May",127,21.5,746,21.4,41]
[null,null,null,null,null,null,null,null,null,null,null,"Jun",139.6,22.5,1042.5,22.4,47.9]
[null,null,null,null,null,null,null,null,null,null,null,"Jul",241.4,20.2,1542.3,20.2,57.5]
[null,null,null,null,null,null,null,null,null,null,null,"Aug",133.5,21.7,652.79999999999995,21.7,36.9]
[null,null,null,null,null,null,null,null,null,null,null,"Sep",116.2,22.4,905.8,22.3,32.299999999999997]
[null,null,null,null,null,null,null,null,null,null,null,"Oct",491.6,33.6,2367.8000000000002,33.6,11.9]
[null,null,null,null,null,null,null,null,null,null,null,"Nov",136.69999999999999,32.299999999999997,451.1,32.299999999999997,44.3]
[null,null,null,null,null,null,null,null,null,null,null,"Dec",118.7,29.8,691.1,29.7,41.7]
[null,null,null,null,null,null,null,null,null,null,null,"Annual",{"$f":"MAX(M25:M36)","v":491.6},{"$f":"AVERAGE(N25:N36)","v":26.108333333333334},{"$f":"MAX(O25:O36)","v":2367.8000000000002},{"$f":"AVERAGE(P25:P36)","v":26.066666666666663},{"$f":"MAX(Q25:Q36)","v":57.5}]
[]
[null,null,null,null,null,null,null,null,null,null,2023,"mg/Nm3","95%ile 10-min avg maximum","Monthly CO 10-min avg mean","10-min avg maximum","Monthly daily mean","Monthly daily maximum"]
[null,null,null,null,null,null,null,null,null,null,"A3","Jan"]
[null,null,null,null,null,null,null,null,null,null,null,"Feb"]
[null,null,null,null,null,null,null,null,null,null,null,"Mar"]
[null,null,null,null,null,null,null,null,null,null,null,"Apr"]
[null,null,null,null,null,null,null,null,null,null,null,"May"]
[null,null,null,null,null,null,null,null,null,null,null,"Jun"]
[null,null,null,null,null,null,null,null,null,null,null,"Jul"]
[null,null,null,null,null,null,null,null,null,null,null,"Aug"]
[null,null,null,null,null,null,null,null,null,null,null,"Sep"]
[null,null,null,null,null,null,null,null,null,null,null,"Oct"]
[null,null,null,null,null,null,null,null,null,null,null,"Nov"]
["Comments :",null,null,null,null,null,null,null,null,null,null,"Dec"]
["Environment Agency explanatory note: The 10-minute average ELV is based on the “95th percentile”. In this case this means that 95% of the 10 minute averages in the relevant 24-hour period (i.e. 137) must be below 150 mg/Nm3, and 5% (i.e. 7) are allowed to be any value above 150 mg/Nm3. Whilst we expect operators to minimise CO emissions at all times, it is perfectly acceptable for the value of the maximum 10-minute average to be above 150 mg/Nm3, provided the 95th percentile ELV has been met for that period. ",null,null,null,null,null,null,null,null,null,null,"Annual",{"$error":"#DIV/0!"},null,0,{"$error":"#DIV/0!"},0]
[]
[null,null,null,null,null,null,null,null,null,null,2023,"mg/Nm3","95%ile 10-min avg maximum","Monthly CO 10-min avg mean","10-min avg maximum","Monthly daily mean","Monthly daily maximum"]
[null,null,null,null,null,null,null,null,null,null,"A4","Jan"]
[null,null,null,null,null,null,null,null,null,null,null,"Feb"]
[null,null,null,null,null,null,null,null,null,null,null,"Mar"]
[null,null,null,null,null,null,null,null,null,null,null,"Apr"]
[null,null,null,null,null,null,null,null,null,null,null,"May"]
[null,null,null,null,null,null,null,null,null,null,null,"Jun"]
[null,null,null,null,null,null,null,null,null,null,null,"Jul"]
[null,null,null,null,null,null,null,null,null,null,null,"Aug"]
[null,null,null,null,null,null,null,null,null,null,null,"Sep"]
[null,null,null,null,null,null,null,null,null,null,null,"Oct"]
[null,null,null,null,null,null,null,null,null,null,null,"Nov"]
[null,null,null,null,null,null,null,null,null,null,null,"Dec"]
[null,null,null,null,null,null,null,null,null,null,null,"Annual",{"$error":"#DIV/0!"},null,0,{"$error":"#DIV/0!"},0]
[]
[null,null,null,null,null,null,null,null,null,null,2023,"mg/Nm3","95%ile 10-min avg maximum","Monthly CO 10-min avg mean","10-min avg maximum","Monthly daily mean","Monthly daily maximum"]
[null,null,null,null,null,null,null,null,null,null,"A5","Jan"]
[null,null,null,null,null,null,null,null,null,null,null,"Feb"]
[null,null,null,null,null,null,null,null,null,null,null,"Mar"]
[null,null,null,null,null,null,null,null,null,null,null,"Apr"]
[null,null,null,null,null,null,null,null,null,null,null,"May"]
[null,null,null,null,null,null,null,null,null,null,null,"Jun"]
[null,null,null,null,null,null,null,null,null,null,null,"Jul"]
[null,null,null,null,null,null,null,null,null,null,null,"Aug"]
[null,null,null,null,null,null,null,null,null,null,null,"Sep"]
[null,null,null,null,null,null,null,null,null,null,null,"Oct"]
[null,null,null,null,null,null,null,null,null,null,null,"Nov"]
[null,null,null,null,null,null,null,null,null,null,null,"Dec"]
[null,null,null,null,null,null,null,null,null,null,null,"Annual",{"$error":"#DIV/0!"},null,0,{"$error":"#DIV/0!"},0]

{"sheet":"CO 0.5 hourly","index":22,"n_rows":82,"n_cols":17,"rows_kept":82,"cut":false,"hidden":false,"merged":[[4,0,5,6],[6,16,10,18],[12,16,14,18],[15,16,18,18],[69,9,81,9],[7,1,7,3],[7,4,7,6],[7,9,7,14],[9,9,21,9],[24,9,36,9],[39,9,51,9],[50,0,50,6],[51,0,54,6],[54,9,66,9]]}
["Annual Performance Report 2023",null,null,null,"Name of Facility as per Permit"]
[]
["Monitoring of Carbon Monoxide (half hourly)",null,null,"Whole Installation",null,null,"See  Notes in Cell Q3",null,null,"Monitoring of Carbon Monoxide (half hourly)",null,null,null,"Per Combustion Line",null,null,"Notes:"]
[]
["Please complete this tab for your plant if you have 1/2 hourly CO ELVs; otherwise, leave it blank and complete the CO 95% 10 min tab"]
[]
[null,null,null,null,null,null,null,null,null,null,null,null,null,null,null,null,"User to add logic to complete Whole installation, Table A5:G18. From the data in Per Combustion Line, Table J6:O79, subject to No. of lines installed"]
["mg/Nm3","1/2 Hourly Reference Periods",null,null,"Daily Reference Periods"]
[2023,"1/2 hourly CO ELV","Monthly 1/2 hourly mean","Highest 1/2 hourly maximum","Daily CO ELV","Monthly daily mean","Highest daily maximum",null,null,2023,"mg/Nm3","Monthly 1/2 hourly mean","Monthly 1/2 hourly maximum","Monthly daily mean","Monthly daily maximum"]
["Jan",100,null,null,50,null,null,null,null,"A1","Jan"]
["Feb",100,null,null,50,null,null,null,null,null,"Feb"]
["Mar",100,null,null,50,null,null,null,null,null,"Mar",null,null,null,null,null,"Whole Installation table A5:G18:"]
["Apr",100,null,null,50,null,null,null,null,null,"Apr",null,null,null,null,null,"Mean: for 1/2 hourly and daily periods calculate mean of values across all operational combustion lines for the month"]
["May",100,null,null,50,null,null,null,null,null,"May"]
["Jun",100,null,null,50,null,null,null,null,null,"Jun"]
["Jul",100,null,null,50,null,null,null,null,null,"Jul",null,null,null,null,null,"Maximum: for 1/2 hourly and daily periods use the highest value across all operational combustion lines for the month"]
["Aug",100,null,null,50,null,null,null,null,null,"Aug"]
["Sep",100,null,null,50,null,null,null,null,null,"Sep"]
["Oct",100,null,null,50,null,null,null,null,null,"Oct"]
["Nov",100,null,null,50,null,null,null,null,null,"Nov"]
["Dec",100,null,null,50,null,null,null,null,null,"Dec"]
[null,null,null,null,null,null,null,null,null,null,"Annual",{"$error":"#DIV/0!"},0,{"$error":"#DIV/0!"},0]
[]
[null,null,null,null,null,null,null,null,null,2023,"mg/Nm3","Monthly 1/2 hourly mean","Monthly 1/2 hourly maximum","Monthly daily mean","Monthly daily maximum"]
[null,null,null,null,null,null,null,null,null,"A2","Jan"]
[null,null,null,null,null,null,null,null,null,null,"Feb"]
[null,null,null,null,null,null,null,null,null,null,"Mar"]
[null,null,null,null,null,null,null,null,null,null,"Apr"]
[null,null,null,null,null,null,null,null,null,null,"May"]
[null,null,null,null,null,null,null,null,null,null,"Jun"]
[null,null,null,null,null,null,null,null,null,null,"Jul"]
[null,null,null,null,null,null,null,null,null,null,"Aug"]
[null,null,null,null,null,null,null,null,null,null,"Sep"]
[null,null,null,null,null,null,null,null,null,null,"Oct"]
[null,null,null,null,null,null,null,null,null,null,"Nov"]
[null,null,null,null,null,null,null,null,null,null,"Dec"]
[null,null,null,null,null,null,null,null,null,null,"Annual",{"$error":"#DIV/0!"},0,{"$error":"#DIV/0!"},0]
[]
[null,null,null,null,null,null,null,null,null,2023,"mg/Nm3","Monthly 1/2 hourly mean","Monthly 1/2 hourly maximum","Monthly daily mean","Monthly daily maximum"]
[null,null,null,null,null,null,null,null,null,"A3","Jan"]
[null,null,null,null,null,null,null,null,null,null,"Feb"]
[null,null,null,null,null,null,null,null,null,null,"Mar"]
[null,null,null,null,null,null,null,null,null,null,"Apr"]
[null,null,null,null,null,null,null,null,null,null,"May"]
[null,null,null,null,null,null,null,null,null,null,"Jun"]
[null,null,null,null,null,null,null,null,null,null,"Jul"]
[null,null,null,null,null,null,null,null,null,null,"Aug"]
[null,null,null,null,null,null,null,null,null,null,"Sep"]
[null,null,null,null,null,null,null,null,null,null,"Oct"]
[null,null,null,null,null,null,null,null,null,null,"Nov"]
["Comments :",null,null,null,null,null,null,null,null,null,"Dec"]
[null,null,null,null,null,null,null,null,null,null,"Annual",{"$error":"#DIV/0!"},0,{"$error":"#DIV/0!"},0]
[]
[null,null,null,null,null,null,null,null,null,2023,"mg/Nm3","Monthly 1/2 hourly mean","Monthly 1/2 hourly maximum","Monthly daily mean","Monthly daily maximum"]
[null,null,null,null,null,null,null,null,null,"A4","Jan"]
[null,null,null,null,null,null,null,null,null,null,"Feb"]
[null,null,null,null,null,null,null,null,null,null,"Mar"]
[null,null,null,null,null,null,null,null,null,null,"Apr"]
[null,null,null,null,null,null,null,null,null,null,"May"]
[null,null,null,null,null,null,null,null,null,null,"Jun"]
[null,null,null,null,null,null,null,null,null,null,"Jul"]
[null,null,null,null,null,null,null,null,null,null,"Aug"]
[null,null,null,null,null,null,null,null,null,null,"Sep"]
[null,null,null,null,null,null,null,null,null,null,"Oct"]
[null,null,null,null,null,null,null,null,null,null,"Nov"]
[null,null,null,null,null,null,null,null,null,null,"Dec"]
[null,null,null,null,null,null,null,null,null,null,"Annual",{"$error":"#DIV/0!"},0,{"$error":"#DIV/0!"},0]
[]
[null,null,null,null,null,null,null,null,null,2023,"mg/Nm3","Monthly 1/2 hourly mean","Monthly 1/2 hourly maximum","Monthly daily mean","Monthly daily maximum"]
[null,null,null,null,null,null,null,null,null,"A5","Jan"]
[null,null,null,null,null,null,null,null,null,null,"Feb"]
[null,null,null,null,null,null,null,null,null,null,"Mar"]
[null,null,null,null,null,null,null,null,null,null,"Apr"]
[null,null,null,null,null,null,null,null,null,null,"May"]
[null,null,null,null,null,null,null,null,null,null,"Jun"]
[null,null,null,null,null,null,null,null,null,null,"Jul"]
[null,null,null,null,null,null,null,null,null,null,"Aug"]
[null,null,null,null,null,null,null,null,null,null,"Sep"]
[null,null,null,null,null,null,null,null,null,null,"Oct"]
[null,null,null,null,null,null,null,null,null,null,"Nov"]
[null,null,null,null,null,null,null,null,null,null,"Dec"]
[null,null,null,null,null,null,null,null,null,null,"Annual",{"$error":"#DIV/0!"},0,{"$error":"#DIV/0!"},0]